Workbook

Sheet 1-P&G
A2: ITEM NO | B2: PAYMENT REFERS | C2: SHORT DESCRIPTION | D2: UNIT | E2: QUANTITY | F2: RATE (R) | G2: AMOUNT (R)
A3: `
B4: SANS 1200 A | C4: SECTION 1 : GENERAL
A6: 1.1 | B6: 8.3 | C6: Contractual Requirements
A8: 1.1.1 | B8: 8.3.1 | C8: Contractual requirements | D8: Sum | E8: 1
A9: 1.1.2 | C9: Fixed preliminary and general charges | D9: Sum | E9: 1
B10: 8.3.2 | C10: Establishment of facilities on site:
B12: 8.3.2.1 | C12: Facilities for Employers Agent
A14: 1.1.3 | B14: 8.3.2.1(a) | C14: Provision of a furnished meeting room and office for the Employers Agent's Representative (including all furnishings, facilities and equipment including toilet facilities) | D14: Sum | E14: 1
A15: 1.1.4 | C15: Provision of survey equipment (PSAB 4.2) | D15: Sum | E15: 1
A17: 1.1.5 | C17: Contract Nameboard (2 No.) and Identity Boards (2 No.) with supports erected & moved complete. (Refer to PSAB 3.1) | D17: No. | E17: 2
A19: 1.1.6 | C19: Provision of survey assistants (Refer PSAB 5.5) | D19: Sum | E19: 1
A21: 1.1.7 | C21: Covered Parking (2 bays) (Refer PSAB 3.3) | D21: Sum | E21: 1
A23: 1.1.8 | C23: PPE for Engineer, assistants and students | D23: Sum | E23: 1
A25: 1.1.9 | C25: Security of works | D25: Sum | E25: 1
A27: 1.1.10 | C27: All other specified facilities (incl wifi internet connection and printer) | D27: Sum | E27: 1
A29: 1.1.11 | B29: 8.3.2.2, 8.3.2.3 | C29: Facilities for Contractor
A31: 1.1.11.1 | C31: a) Offices and storage sheds | D31: Sum | E31: 1
A33: 1.1.11.2 | C33: b) Workshops | D33: Sum | E33: 1
A35: 1.1.11.3 | C35: c) Laboratories | D35: Sum | E35: 1
A37: 1.1.11.4 | C37: d) Living Accommodation | D37: Sum | E37: 1
A39: 1.1.11.5 | C39: e) Ablution and latrine facilities | D39: Sum | E39: 1
A41: 1.1.11.6 | C41: f) Tools and equipment | D41: Sum | E41: 1
A43: 1.1.11.7 | C43: g) Water supplies, electric power and communications | D43: Sum | E43: 1
A45: 1.1.11.8 | C45: h) Dealing with water | D45: Sum | E45: 1
A47: 1.1.11.9 | C47: i) Access | D47: Sum | E47: 1
A49: 1.1.11.10 | C49: j) Construction Plant and Transport | D49: Sum | E49: 1
A51: 1.1.11.11 | B51: 8.3.4 | C51: Remove all site establishment on completion | D51: Sum | E51: 1
A53: 1.1.11.12 | B53: PSA 8.3.5.3 | C53: Dealing with conditions of permits, Wayleave Agreements, EIA, RoD. (Refer to C3.4.4.8) | D53: Sum | E53: 1
A55: 1.1.11.13 | B55: PSA 8.3.5.1 | C55: Notices and warmings to consumers | D55: Sum | E55: 1
C58: TOTAL CARRIED FORWARD
C59: TOTAL BROUGHT FORWARD
A61: 1.1.12 | B61: PSA 8.8 a | C61: OH&S Requirements (Fixed charges)
B63: PSA 8.3.5.2 | C63: The sum shall cover all preparation of risk assessments (Annexure D), safe work procedures, the project H&S File, the H&S Plan, medicals for all workers, the provision of PPE and protective clothing, including hazards and potential hazard identification, Standard Working Procedures, and Method Statements and all other costs necessary in complying generally with the Occupational Health and Safety Act 85 of 1993, (as amended), the Construction Regulations 2014 and the Particular Safety Specification (Annexure C) | D63: Sum | E63: 1
A65: 1.1.13 | C65: Completing and checking the Project H&S File and handing over to Client on completion of the works and exit medicals for all workers. | D65: Sum | E65: 1
A67: 1.1.14 | C67: HIV / AIDS Awareness
C68: Refer to SANS 1921-6 and Annexure F
C70: Conduct HIV/AIDS awareness programme workshops on site for not less than 90% of the workers inclusive of all direct and indirect costs (at least once every 4 months) | D70: No. | E70: 2
A72: 1.1.15 | C72: Provide and maintain condom dispenser | D72: No. | E72: 1
A74: 1.1.15 | C74: Provide and maintain HIV/AIDS awareness posters | D74: No. | E74: 1
A76: 1.1.16 | C76: Provide information regarding the voluntary testing of construction workers, counselling, support and care in a monthly report | D76: Sum | E76: 1
A78: 1.1.17 | B78: PSA 8.3.5.3 | C78: Environmental Management and EMP
C80: The sum shall cover the cost of all activities necessary to comply with section C3.5 and Annexure M of the Environmental Management Particular Specification, and Environmental Management Plan, which incorporates the ROD requirements for the Project, which have not been included in the tendered rates for the scheduled items allowed elsewhere in the bill of quantities | D80: Sum | E80: 1
C83: Appointment of Safety Officer | D83: Sum | E83: 1
C85: Appointment of Environmental Officer | D85: Sum | E85: 1
A87: 1.2 | B87: SANS 1200A | C87: TIME RELATED ITEMS
A89: 1.2.1 | B89: PSA 8.4.1 | C89: Contractual requirements (including, EPWP, QA and Project Reporting) | D89: Months | E89: 6
C94: TOTAL CARRIED FORWARD | F94: R
C95: TOTAL BROUGHT FORWARD | F95: R
B97: PSA 8.4.2 | C97: Operate and maintain facilities on Site
B99: 8.4.2.1 | C99: Facilities for Engineer for duration of contract (SANS 1200AB)
A101: 1.2.2 | B101: 8.4.2.1 (a) | C101: Provision of meeting room and office for the Engineer's Representative including toilet facilities as per PSAB 5.2 & PSAB 3.2 | D101: Months | E101: 6
A103: 1.2.3 | C103: Provision of survey equipment (Refer to PSAB 4.2) | D103: Months | E103: 6
A105: 1.2.4 | C105: Provision of 2 № survey assistants (Refer to PSAB 5.5) | D105: Months | E105: 6
A106: 1.2.5 | C106: Nameboards (2No.) | D106: Months | E106: 6
A108: 1.2.6 | C108: PPE for Engineer and assistants | D108: Months | E108: 6
A110: 1.2.7 | C110: Engineer's Office and parking facilities | D110: Months | E110: 6
A112: 1.2.7 | C112: Security of works | D112: Months | E112: 6
A114: 1.2.8 | B114: 8.4.2.2 8.4.2.3 | C114: Facilities for Contractor
A116: 1.2.8.1 | C116: a) Offices and storage sheds | D116: Months | E116: 6
A118: 1.2.8.2 | C118: b) Workshops | D118: Months | E118: 6
A120: 1.2.8.3 | C120: c) Laboratories | D120: Months | E120: 6
A122: 1.2.8.4 | C122: d) Living Accommodation | D122: Months | E122: 6
A124: 1.2.8.5 | C124: e) Ablution and latrine facilities | D124: Months | E124: 6
A126: 1.2.8.6 | C126: f) Tools and equipment | D126: Months | E126: 6
A128: 1.2.8.7 | C128: g) Water supplies, electric power and communications | D128: Months | E128: 6
A130: 1.2.8.8 | C130: h) Dealing with water | D130: Months | E130: 6
A132: 1.2.8.9 | C132: i) Access | D132: Months | E132: 6
A134: 1.2.8.10 | C134: j) Construction Plant and Transport | D134: Months | E134: 6
A136: 1.2.9 | B136: PSA 8.4.3 | C136: Supervision for duration of the contract (all supervisory staff not considered labour) | D136: Months | E136: 6
A138: 1.2.10 | B138: 8.4.4 | C138: Company and Head Office overhead costs | D138: Months | E138: 6
A140: 1.2.11 | C140: General responsibilities and other time related obligations | D140: Months | E140: 6
B142: PSA 8.4.6.1 | C142: Permits and Wayleaves
A144: 1.2.12 | C144: Dealing with conditions of permits, Wayleave Agreements, EIA, RoD (Refer to C3.4.4.8) | D144: Months | E144: 6
C156: TOTAL CARRIED FORWARD | F156: R
C157: TOTAL BROUGHT FORWARD | F157: R
A160: 1.2.13 | B160: PSA 8.4.6.1 | C160: OH&S Requirements (Time charges)
C162: Updating and amending the risk assessments, safe work procedures, the project H&S File, the H&S Plan, medicals for all workers, the provision of PPE and protective clothing, including hazards and potential hazard identification, Standard Working Procedures, and Method Statements and all other costs necessary in complying generally with the Occupational Health and Safety Act 85 of 1993, (as amended), the Construction Regulations 2014 and the Particular Safety Specification (Annexure C) | D162: Months | E162: 6
A164: 1.2.14 | C164: Full compliance and checking the Project H&S File during construction of the works under the Contract. | D164: Months | E164: 6
A166: 1.2.15 | C166: The sum shall cover all activities necessary in complying with the requirements of the Health and Safety Specification in terms of Training as the Work proceeds | D166: Months | E166: 6
A168: 1.2.16 | C168: The sum shall cover all activities necessary in complying with the requirements of the Health and Safety Specification in terms of Monitoring and Review as the Work proceeds | D168: Months | E168: 6
A170: 1.2.17 | C170: The sum shall cover the cost of all activities necessary to comply with section C3.5 and Annexure M of the Environmental Management Particular Specification, and Environmental Management Plan, which incorporates the ROD requirements for the Project, which have not been included in the tendered rates for the scheduled items allowed elsewhere in the bill of quantities | D170: Months | E170: 6
A172: 1.2.18 | B172: PSA 8.4.6.2 | C172: Security in accordance with C3.4.4.6 | D172: Months | E172: 6
A174: 1.2.19 | C174: Any other time related obligations | D174: Months | E174: 6
C176: EME's or QSE's
A178: 1.2.20 | B178: PSA 8.5.4 | C178: Contractor to provide manager for dealing with EME's or QSE's for duration of contract to meet local employment and local enterprise targets (Refer to C1.8, C1.9 and C3.4.10 & PSA 5.10) | D178: Months | E178: 6
A181: 1.2.21 | C181: Dealing with conditions of EME's or QSE's sub-contractors and local/target labour (Refer to C1.9, C3.4.10 & C3.3.2).The tendered rate shall cover all costs including but not limited to procurement, management, administration, overheads, finance costs, transportation, training, risk and profit and any other costs associated on work allocated to EME's or QSE's and targeted labour in order to achieve the required participation goals. (Contractor to allocate packages) | D181: Months | E181: 6
C191: TOTAL CARRIED FORWARD | F191: R
C192: TOTAL BROUGHT FORWARD | F192: R
A195: 1.3 | B195: 8.5 | C195: SUMS STATED PROVISIONALLY BY ENGINEER
A197: 1.3.1 | B197: PSA 8.4.6.1 | C197: Quality assurance and management plan | D197: Sum | E197: 1.0
A199: 1.3.2 | B199: PSA 8.4.6.1 | C199: Provisional sum for Independent OHS, EMP practitioners | D199: Prov. Sum | E199: 1.0
A202: 1.4 | B202: 8.8 | C202: TEMPORARY WORKS
A204: 1.4.1 | B204: PSA 8.8.4 | C204: Dealing with traffic or accommodation of traffic and erecting signage (also refer to SANS 1921-2) | D204: Sum | E204: 1
A206: 1.4.2 | B206: PSA 8.8.5 | C206: Access to works including all temporary roads, excavations and ramps, etc. | D206: Sum | E206: 1
A208: 1.4.3 | B208: PSA 8.8.6 | C208: Dealing with water | D208: Sum | E208: 1
A210: 1.4.4 | B210: 8.8.3 | C210: Dealing with existing infrastructure | D210: Sum | E210: 1
A212: 1.4.5 | B212: PSA 8.8.7 | C212: Dealing with Public | D212: Sum | E212: 1
A214: 1.4.6 | B214: PSA 8.8.8 | C214: Barricading of Trenches | D214: Sum | E214: 1
A216: 1.4.7 | B216: PSA 8.8.9 | C216: Fencing | D216: Sum | E216: 1
A219: 1.4.9 | B219: PSA 8.8.10 | C219: Allow for the attendance of other Contractors, JW staff and public within the parameters of the site. | D219: Sum | E219: 1
B233: TOTAL FOR SECTION 1 CARRIED FORWARD TO SUMMARY | F233: R

Sheet 2-Daywork
A2: ITEM NO | B2: PAYMENT REFERS | C2: SHORT DESCRIPTION | D2: UNIT | E2: QUANTITY | F2: RATE (R) | G2: AMOUNT (R)
A4: 2 | B4: SANS 1200A | C4: SECTION 2: DAYWORKS, PROVISIONAL SUMS AND PRIME COST ITEMS
B5: 8.7
A6: 2.1 | B6: PSA 8.6 | C6: DAYWORKS
C8: Labour
A10: 2.1.1 | B10: 8.5 (b.1) | C10: Allow for total remuneration paid to workers | D10: Prov Sum | E10: 1 | F10: 30,000.00 | G10: =E10*F10 -> 30,000.00
A12: 2.1.2 | B12: PSA 8.5 | C12: Overheads, charges and profit on 2.1.1 above | D12: % | E12: =F10 -> 30,000.00
A14: 2.1.3 | C14: Team Leader / charge hand | D14: hr | E14: 5
A16: 2.1.4 | C16: Artisan | D16: hr | E16: 10
A18: 2.1.5 | C18: Skilled | D18: hr | E18: 10
A20: 2.1.6 | C20: Semi-skilled | D20: hr | E20: 10
A22: 2.1.7 | C22: Unskilled | D22: hr | E22: 10
A24: 2.1.10 | C24: Foreman | D24: hr. | E24: 10.0
A26: 2.1.11 | C26: Driver (LDV,machine, trucks, etc.) | D26: hr. | E26: 10.0
A28: 2.1.12 | C28: Certified Blaster | D28: hr. | E28: 10.0
A30: 2.1.13 | C30: Steel fixer | D30: hr. | E30: 10.0
A32: 2.1.14 | C32: Concretor | D32: hr. | E32: 10.0
A34: 2.1.15 | C34: Charge hand | D34: hr. | E34: 10.0
A36: 2.1.16 | C36: Security guard | D36: hr. | E36: 10.0
C38: Plant and equipment
C40: (a) Tractor loader backhoe (TLB)
A41: 2.1.17 | C41: (i) Tractor Loader Backhoe (Bigger than 45kW but smaller than 70kW) | D41: hr. | E41: 5.0
C43: (b) Crawler Excavators
A44: 2.1.18 | C44: (i) Smaller than 93kW (small) | D44: hr. | E44: 0.0
A45: 2.1.19 | C45: (ii) Bigger than 93kW but smaller than 200kW ( Medium) | D45: hr. | E45: 0.0
C47: (c) Tipper Trucks
A48: 2.1.20 | C48: (i) Tipper trucks (3m³) Small | D48: hr. | E48: 5.0
A49: 2.1.21 | C49: (ii) Tipper trucks (5m³) Medium | D49: hr. | E49: 5.0
A50: 2.1.22 | C50: (iii) Tipper trucks (10m³) Large | D50: hr. | E50: 5.0
C52: (d) Flat Bed Trucks
A53: 2.1.23 | C53: (i) Flat bed 5t capacity | D53: hr. | E53: 8.0
A54: 2.1.24 | C54: (ii) Flat bed 7t capacity | D54: hr. | E54: 8.0
C56: (e) LDV
A57: 2.1.25 | C57: (i) 1t Pick-up | D57: hr. | E57: 5.0
A59: 2.1.26 | C59: (f) Mobile Crane 5t at 3m radius | D59: hr. | E59: 5.0
C61: (g) Walk behind vibrating rollers
A62: 2.1.27 | C62: (i) Model - Bomag 60 or similar (small) | D62: hr. | E62: 5.0
A63: 2.1.28 | C63: (ii) Model - Bomag 76 or similar (medium) | D63: hr. | E63: 0.0
A64: 2.1.29 | C64: (iii) Model - Bomag 90 or similar | D64: hr. | E64: 0.0
C73: TOTAL CARRIED FORWARD
C74: TOTAL BROUGHT FORWARD
C76: (h) Plate compactors
A77: 2.1.30 | C77: (i) Vipac or similar | D77: hr. | E77: 5.0
C79: (i) Rammers
A80: 2.1.31 | C80: (i) Model - Wacker or similar | D80: hr. | E80: 5.0
A82: 2.1.32 | C82: (j) Concrete mixers | J82: 222222
A83: 2.1.33 | C83: (i) Volume 100 litre wet (small, towable) | D83: hr. | E83: 8.0
A84: 2.1.34 | C84: (ii) Volume 175 litre wet (medium) | D84: hr. | E84: 0.0
A85: 2.1.35 | C85: (iii) Volume 250 litre wet (large) | D85: hr. | E85: 0.0
C87: (k) Diesel compressors including hoses and tools | D87: hr | E87: 8.0
A88: 2.1.36 | C88: (i) Capacity smaller than 200 cfm (small) | D88: hr. | E88: 0.0
A89: 2.1.37 | C89: (ii) Capacity bigger than 200 cfm smaller than 400 cfm (medium) | D89: hr. | E89: 0.0
A90: 2.1.38 | C90: (iii) Capacity bigger than 400 cfm (large) | D90: hr. | E90: 0.0
A92: 2.1.39 | C92: (l) Waterpump
A93: 2.1.40 | C93: (i) Capacity smaller than 400 litre/min (medium) | D93: hr | E93: 4.0
A94: 2.1.41 | C94: (ii) Capacity bigger than 400 but smaller than 600 litre/min (medium) | D94: hr | E94: 0.0
A95: 2.1.42 | C95: (iii) Capacity bigger than 600 but smaller then 1 100 litre/sec (large) | D95: hr | E95: 0.0
C97: Materials
A99: 2.1.43 | B99: 8.5 (a, b1) | C99: Net cost of goods or materials | D99: Prov Sum | E99: 1 | F99: 50,000.00 | G99: =E99*F99 -> 50,000.00
A101: 2.1.44 | B101: PSA 8.5 | C101: Overheads, charges and profit on 2.1.8 above | D101: % | E101: =F99 -> 50,000.00
C103: Contractors own Plant
A105: 2.1.45 | B105: 8.5 (a) | C105: Allow for all-inclusive cost of using Contractor's own plant on site. | D105: Prov Sum | E105: 1
C107: Plant hired by the Contractor
A109: 2.1.46 | B109: 8.5 (b.1) | C109: Net cost of hired plant | D109: Prov Sum | E109: 1
A111: 2.1.47 | B111: PSA 8.5 | C111: Overheads, charges and profit on 2.1.11 above | D111: % | E111: 25,000.00
C113: Survey Beacons/Pegs
A115: 2.1.48 | B115: 8.5 (a) | C115: Search for, record, reference and protect survey stations, bench marks, erf boundary pegs and other reference pegs and expose on completion of works | D115: Sum | E115: 1
A117: 2.2 | B117: 8.5 | C117: SUMS STATED PROVISIONALLY BY THE ENGINEER
B118: PSA 8.5
A119: 2.2.1 | C119: Cellphone allowance for the Employers Agent Representative and their assistant for the duration of the contract (R1500 pm) | D119: Prov Sum | E119: 1 | F119: 9,000.00 | G119: =E119*F119 -> 9,000.00
A121: 2.2.2 | C121: Overheads, charges and profit on 2.2.1 above | D121: % | E121: =F119 -> 9,000.00
C136: TOTAL CARRIED FORWARD | F136: R | G136: =SUM(G74:G125) -> 59,000.00
C137: TOTAL BROUGHT FORWARD | F137: R | G137: =G136 -> 59,000.00
A140: 2.2.7 | C140: Equipment for the Employers Agent Representative and their assistant for the duration of the contract | D140: Prov Sum | E140: 1 | F140: 10,000.00 | G140: =E140*F140 -> 10,000.00
A142: 2.2.8 | C142: Overheads, charges and profit on 2.2.7 above | D142: % | E142: =F140 -> 10,000.00
C143: Survey
A145: 2.2.9 | C145: Ad-hoc topographical survey as requested by the Engineer during the contract | D145: Prov Sum | E145: 1 | F145: 12,000.00 | G145: =E145*F145 -> 12,000.00
A147: 2.2.10 | C147: Overheads, charges and profit on 2.2.9 above | D147: %
B149: PSA 8.5.3 | C149: Community Liason Officer and Consultant
A151: 2.2.11 | B151: a) | C151: Employment of the CLO for duration of contract who shall be appointed by the Contractor and shall report to the Engineer and the Client (R8500 pm plus R500 pm cellphone allowance) (refer C3.4.7) | D151: Prov Sum | E151: 1 | F151: =81000 -> 81,000.00 | G151: =E151*F151 -> 81,000.00
A153: 2.2.12 | B153: b) | C153: Overheads, charges and profit on 2.2.11 | D153: % | E153: =G151 -> 81,000.00
A155: 2.2.13 | C155: Employment of a social consultant for duration of contract | D155: Prov Sum | E155: 1 | F155: 81,000.00 | G155: =E155*F155 -> 81,000.00
A157: 2.2.14 | B157: PSA 8.5 | C157: Overheads, charges and profit on 2.2.13 | D157: % | E157: =F155 -> 81,000.00
G158: =IF(E158="-",F158,IF(E158="","",F158*E158)) -> 
B159: PSA 8.12 | C159: Training | G159: =IF(E159="-",F159,IF(E159="","",F159*E159)) -> 
B160: PSA 8.13
A161: 2.2.15 | C161: Allowance for training of local unskilled labour | D161: Prov Sum | E161: 1 | F161: 150,000.00 | G161: =E161*F161 -> 150,000.00
A163: 2.2.16 | B163: PSA 8.5 | C163: Overheads, charges and profit on 2.2.15 | D163: % | E163: =F161 -> 150,000.00
A165: 2.2.17 | B165: PSA 8.14 | C165: Allowance for transport | D165: Prov Sum | E165: 1 | F165: 25,000.00 | G165: =E165*F165 -> 25,000.00
A167: 2.2.18 | C167: Overheads, charges and profit on 2.2.17 | D167: % | E167: =F165 -> 25,000.00
B169: Spec PC | C169: Re-vegetation | G169: =IF(E169="-",F169,IF(E169="","",F169*E169)) -> 
A171: 2.2.19 | C171: Re-vegetation of the site | D171: Prov Sum | E171: 1 | F171: 15,000.00 | G171: =E171*F171 -> 15,000.00
A173: 2.2.20 | B173: PSA 8.5 | C173: Overheads, charges and profit on 2.2.19 | D173: % | E173: =F171 -> 15,000.00
C175: Pipework | G175: =IF(E175="-",F175,IF(E175="","",F175*E175)) -> 
A177: 2.2.21 | C177: Connection to existing / proposed pipework | D177: Prov Sum | E177: 1 | F177: 15,000.00 | G177: =E177*F177 -> 15,000.00
A179: 2.2.22 | C179: Overheads, charges and profit on 2.2.21 | D179: % | E179: =F177 -> 15,000.00
C181: Control Testing | G181: =IF(E181="-",F181,IF(E181="","",F181*E181)) -> 
A183: 2.2.23 | B183: PSA 8.5.1 | C183: Acceptance Control Testing | D183: Prov Sum | E183: 1 | F183: 15,000.00 | G183: =E183*F183 -> 15,000.00
A185: 2.2.24 | B185: 8.5 (b) | C185: Overheads, charges and profit on 2.2.23 | D185: % | E185: =F183 -> 15,000.00
C201: TOTAL CARRIED FORWARD | F201: R
C202: TOTAL BROUGHT FORWARD | F202: R
B204: PSA 8.5 | C204: Students
A206: 2.2.25 | C206: Provisional Sum for employing students on the Contract | D206: Prov Sum | E206: 1 | F206: 100,000.00 | G206: =E206*F206 -> 100,000.00
A208: 2.2.26 | C208: Overheads, charges and profit on 2.2.25 above | D208: % | E208: =F206 -> 100,000.00
A210: 2.3 | B210: PSA 8.4.7 | C210: MISCELLANEOUS
A212: 2.3.1 | C212: General Signage, as per the Engineer's instructions (Prov) | D212: Prov Sum | E212: 1 | F212: 5,000.00 | G212: =E212*F212 -> 5,000.00
A214: 2.3.2 | C214: Overheads, charges and profit on 2.3.1 | D214: % | E214: =F212 -> 5,000.00
A216: 2.3.3 | B216: PSA 8.8.11 | C216: Allow for the attendance of EME's or QSE's and other Contractors within the parameters of the site (refer C3.5.26) | D216: Sum | E216: 1
B269: TOTAL FOR SECTION 2 CARRIED FORWARD TO SUMMARY | F269: R

Sheet 3-GUARD HOUSE 1
A1: ITEM NO | B1: PAYMENT REFERS | C1: SHORT DESCRIPTION | D1: UNIT | E1: QUANTITY | F1: RATE | G1: AMOUNT
A2: 13.2 | C2: GUARD HOUSE 1
A3: 3
A4: 3.1 | C4: BILL NO. 1
C6: EARTHWORKS
A8: 3.1.1 | C8: Site clearance
A10: 3.1.1.1 | B10: SANS 1200C 8.2.1 | C10: Digging up and remoing rubbish, debris, vegetation, hedge, shrubs, bush etc and trees not exceeding 200mm girth | D10: m² | E10: 50.00
A12: 3.1.1.2 | B12: 8.2.10 | C12: Remove top 150mm, around the building | D12: m² | E12: 30
A14: 3.1.2 | B14: SANS 1200DA | C14: EARTHFILLING
A16: 3.1.2.1 | B16: 8.3.4 | C16: Backfill with G5 material to create level platform compacted to 95% AASHTO MOD. | D16: m³ | E16: =3.6*3.4*0.3 -> 4
A18: 3.1.2.2 | C18: Backfilling to trenches | D18: m³ | E18: =(3.6+3.6+3.5)*2*0.5*0.25 -> 3
A20: 3.1.3 | B20: 8.3.2 | C20: EXCAVATIONS
C22: Excavate in earth not exceeding 2m deep
A24: 3.1.3.1 | C24: Trenches | D24: m³ | E24: =A2 -> 13
A25: 3.1.3.2 | C25: Extra over excavation in soft rock | D25: m³ | E25: 1
A26: 3.1.3.3 | C26: Extra over excavation in hard rock | D26: m³ | E26: 1
C28: Extraover all excavations for carting away
A30: 3.1.3.4 | B30: 8.3.3 | C30: Surplus material from excavations or stockpile on site to a dumping site | D30: m³ | E30: =E24 -> 13
C32: Keeping excavation free of water
A34: 3.1.3.5 | C34: Keeping excavations free of water other than subterranean water | D34: item | E34: 1
B36: 8.3.7 | C36: Risk of collapse
A38: 3.1.3.6 | C38: Sides of excavations not exceeding 1.5m deep | D38: m² | E38: =A2*0.7*2 -> 18
B40: 8.3.9 | C40: Filling etc
A42: 3.1.3.7 | C42: Earth filling obtained from excavations and/or prescibed stock piles on site, compacted to 95 Mod AASHTO density
A44: 3.1.3.8 | C44: Under floors | D44: m³ | E44: =3.6*3 -> 11
A46: 3.1.3.9 | C46: Backfilling to trenches, holes etc | D46: m³ | E46: =A2*0.24*2*0.5 -> 3
C48: Weed killers, insecticides, etc
A49: 3.1.3.10 | C49: Bottom and side of trenchs | D49: m² | E49: =A2*2.1 -> 28
A50: 3.1.3.11 | C50: Bottom of surfacebed | D50: m² | E50: =3.6*3 -> 11
C52: CARRIED FORWARD
A53: ITEM NO | B53: PAYMENT REFERS | C53: SHORT DESCRIPTION | D53: UNIT | E53: QUANTITY | F53: RATE | G53: AMOUNT
A55: 3.2 | C55: BILL NO. 2
B57: SANS1200 GA | C57: CONCRETE, FORMWORK AND REINFORCEMENT
A59: 3.2.1 | B59: 8.4.2 | C59: 15MPa/19MM CONCRETE
A61: 3.2.1.1 | C61: Surface blinding under footings and bases | D61: m³ | E61: =A2*0.7*0.05 -> 0.5
A63: 3.2.2 | B63: 8.4.3 | C63: CONCRETE FOUNDATION
A65: 3.2.2.1 | C65: 25MPa/19mm concrete footing | D65: m³ | E65: =A2*0.7*0.2 -> 2
A66: 3.2.2.2 | C66: 20MPa/19mm surfacebed | D66: m³ | E66: =3.6*3.1 -> 11
A67: 3.2.2.3 | C67: 20MPa/19mm Apron | D67: m³ | E67: =(A2+4)*1*0.05 -> 1
A69: 3.2.3 | B69: 8.4.3 | C69: CONCRETE SLAB
A71: 3.2.3.1 | C71: 25MPa/19mm slabs including beams andinverted beams | D71: m³ | E71: =3.9*3.3*0.17 -> 2
A73: 3.2.4 | B73: 8.3.1 | C73: HIGH STRENGTH STEEL REINFORCEMENT
A75: 3.2.4.1 | C75: Y12 Bars | D75: t | E75: =(A2*4*0.888*0.001)+(14*3.3*0.888*2*0.001)+(11*0.888*3.9*2*0.001) -> 0.21
A77: 3.2.5 | B77: 8.3.1 | C77: MILD STRENGTH STEEL
A79: 3.2.5.1 | C79: R8 bars | D79: t | E79: =A2/0.3*2*0.4*0.001 -> 0.04
B81: 8.3.2 | C81: Fabric Reinforcement
A83: 3.2.5.2 | C83: Mesh ref 193 | D83: m² | E83: =3.6*3 -> 11
A84: 3.2.5.3 | C84: Mesh ref 100 | D84: m² | E84: =A2*1+4*0.6 -> 16
A86: 3.2.6 | B86: 8.4.4 | C86: CONCRETE FINISHES
A87: 3.2.6.1 | C87: Woodfloat finishing to surface bed | D87: m² | E87: =3.6*3 -> 11
A88: 3.2.6.2 | C88: Woodfloat finishing to apron | D88: m² | E88: =E84 -> 16
A89: 3.2.6.3 | C89: Woodfloat finishing to roof slab | D89: m² | E89: =3.6*3.5 -> 13
A91: 3.2.6.4 | C91: 50mm diameter sleeves | D91: m | E91: 50
A93: 3.2.7 | B93: 8.2 | C93: FORMWORK
A95: 3.2.7.1 | B95: 8.2.2 | C95: Formwork to soffit of concrete slab | D95: m² | E95: =3.9*3.3 -> 13
A96: 3.2.7.2 | C96: Formwork to sides of concrete not exceeding 300mm | D96: m | E96: =3.9*2+3.3*2 -> 14
A98: 3.2.8 | C98: Prescribed density tests on filling
A100: 3.2.8.1 | C100: Modified AASHTO Density tests | D100: No | E100: 2
C101: Concrete Sundries
A103: 3.2.8.2 | C103: Making and testing 150x150x150mm concrete test cubes | D103: Item | E103: 2
C105: CARRIED FORWARD TO SUMMARY
A106: ITEM NO | B106: PAYMENT REFERS | C106: SHORT DESCRIPTION | D106: UNIT | E106: QUANTITY | F106: RATE | G106: AMOUNT
C108: BILL NO. 3
A110: 3.3 | C110: MASONRY
B112: PQA 15.1 | C112: Brickwork of NFP bricks in class II mortar
A114: 3.3.1 | C114: One brick wall in foundation | D114: m² | E114: =A2*0.5 -> 7
A116: 3.3.2 | B116: PQA 15.1 | C116: Brickwork of FBX bricks in class II mortar
A118: 3.3.2.1 | C118: One brickwall in supperstructure | D118: m² | E118: =A2*3 -> 40
A120: 3.3.2.2. | C120: 115mm common brick | D120: m² | E120: =3*3 -> 9
A122: 3.3.3 | C122: Brickwork reinforcement
A124: 3.3.3.1 | B124: PQA 15.1 | C124: a) Brick reinforcement 75mm wide built into brick walls with sufficient laps at end joints, angles and intersections (measured net) | D124: m | E124: =2700/340*3 -> 24
A126: 3.3.3.2 | B126: PQA 15.1 | C126: b) Brick reinforcement 150mm wide built into brick walls with sufficient laps at end joints, angles and intersections (measured net) | D126: m | E126: =3500/255*A2 -> 181
A128: 3.3.4 | C128: JOINTS IN WALLS, FLOORS AND ROOF
A130: 3.3.4.1 | C130: Maltoid on walls | D130: m | E130: =A2+3 -> 16
A132: 3.3.4.2 | C132: Saw cut joints on floor and apron | D132: m | E132: 12
C134: Prestressed fabricated Lintels
A136: 3.3.4.3 | B136: PQA 15.5 | C136: 110x170mm lintel in lengths not exceeding 3m | D136: No. | E136: 12.00
C158: CARRIED FORWARD TO SUMMARY
A159: ITEM NO | B159: PAYMENT REFERS | C159: SHORT DESCRIPTION | D159: UNIT | E159: QUANTITY | F159: RATE | G159: AMOUNT
C161: BILL NO. 4
A163: 3.4 | C163: WATERPROOFING
A165: 3.4.1 | B165: PQA 15.4 | C165: DPC 250micron in solid walls | D165: m | E165: =A2 -> 13.20
A167: 3.4.2 | C167: 170micron dpm under surfacebed laid with 150mm overlaps | D167: m² | E167: =3.6*3 -> 10.80
A169: 3.4.3 | B169: PQA 16.4 | C169: Bituminous aluminium paint finish to concrete roof | D169: m² | E169: =3.9*3.3 -> 12.87
A171: 3.4.4 | B171: PQA 16.4 | C171: double malthoid between concrete and brick surfaces | D171: m | E171: =A2+3 -> 16.20
C216: CARRIED FORWARD TO SUMMARY
A217: ITEM NO | B217: PAYMENT REFERS | C217: SHORT DESCRIPTION | D217: UNIT | E217: QUANTITY | F217: RATE | G217: AMOUNT
C219: BILL NO. 5
A221: 3.5 | C221: CARPENTRY AND JOINERY
A223: 3.5.1 | C223: Doors etc
A225: 3.5.2 | C225: 44mm solid core masonite door with hardwood edge strips on both side 877x2100mm | D225: no. | E225: 2.00
C275: CARRIED FORWARD TO SUMMARY
A276: ITEM NO | B276: PAYMENT REFERS | C276: SHORT DESCRIPTION | D276: UNIT | E276: QUANTITY | F276: RATE | G276: AMOUNT
C278: BILL NO. 6
A280: 3.6 | C280: FLOOR COVERINGS, WALL LINNINGS ETC
A281: 3.6.1 | B281: PQB 7.5.1 | C281: Floor tiles | D281: m² | E281: =3.6*3.5 -> 12.60
A283: 3.6.2 | B283: PQB 7.5.1 | C283: Walls tiles | D283: m² | E283: 1.00
C335: CARRIED FORWARD TO SUMMARY
A336: ITEM NO | B336: PAYMENT REFERS | C336: SHORT DESCRIPTION | D336: UNIT | E336: QUANTITY | F336: RATE | G336: AMOUNT
C338: BILL NO. 7
A340: 3.7 | C340: IRONMONGERY
C342: Hinges, Bolts etc
A344: 3.7.1 | C344: Brass hinges with nylon washers | D344: No | E344: 4.00
C346: Locks
A347: 3.7.2
C348: 2 lever motice lockest and handles | D348: No. | E348: 2.00
A350: 3.7.3 | C350: Bathroom fittings
A352: 3.7.3.1 | C352: Satin stainless steel paper towel dispensor | D352: No. | E352: 1.00
A354: 3.7.3.2 | C354: Toilet roll holder | D354: No. | E354: 1.00
C396: CARRIED FORWARD TO SUMMARY
A397: ITEM NO | B397: PAYMENT REFERS | C397: SHORT DESCRIPTION | D397: UNIT | E397: QUANTITY | F397: RATE | G397: AMOUNT
C399: BILL NO. 8
A401: 3.8 | C401: METALWORK
C403: Welded screens
A404: 3.8.1
C405: Security mild steel gate | D405: No. | E405: 1.00
A407: 3.8.2 | C407: Prestressed steel door frames
A409: 3.8.2.1 | B409: PQA 15.3 | C409: 1.2mm double rebate frame suitable for one brick wall | D409: No. | E409: 1.00
A411: 3.8.2.2 | C411: 1.2mm rebate frame suitable for half brick wall | D411: No. | E411: 1.00
A413: 3.8.3 | C413: Window frames
A415: 3.8.3.1 | B415: PQA 15.3 | C415: Type C1 | D415: No | E415: 1.00
A417: 3.8.3.2 | C417: Type C2 | D417: No | E417: 3.00
G427: =IF(E427="","",E427*F427) -> 
C454: CARRIED FORWARD TO SUMMARY
A455: ITEM NO | B455: PAYMENT REFERS | C455: SHORT DESCRIPTION | D455: UNIT | E455: QUANTITY | F455: RATE | G455: AMOUNT
C457: BILL NO. 9
A459: 3.9 | C459: PLASTERING
A461: 3.9.1 | C461: SCREED
A463: 3.9.1.1 | B463: PQA 17.1 | C463: 3:1 Cement plaster screed woodfloated on concrete
A465: 3.9.1.2 | C465: 30mm thick screed on floors | D465: m² | E465: =3.2*2.8 -> 8.96
A467: 3.9.1.3 | C467: 50mm thick screed on roof | D467: m² | E467: =3.6*3.5 -> 12.60
A469: 3.9.2 | C469: Internal Plaster
A471: 3.9.2.1 | B471: PQA 17.1 | C471: One coat cement plaster and one coat rhinolite plaster
A473: 3.9.2.2 | C473: On walls | D473: m² | E473: =(A2-0.9)*3 -> 36.90
A475: 3.9.2.3 | C475: on soffit of concrete slab | D475: m² | E475: =3.9*3.3 -> 12.87
C513: CARRIED FORWARD TO SUMMARY
A514: ITEM NO | B514: PAYMENT REFERS | C514: SHORT DESCRIPTION | D514: UNIT | E514: QUANTITY | F514: RATE | G514: AMOUNT
C516: BILL NO. 10
A518: 3.10 | C518: PLUMBING AND DRAINAGE
A520: 3.10.1 | B520: PQF 5.1 | C520: Sanitary fittings
A522: 3.10.1.1 | C522: Waste chamber | D522: No. | E522: 1.00
A524: 3.10.1.2 | C524: Wash hand basin | D524: No. | E524: 1.00
A526: 3.10.1.3 | C526: Basin waste union | D526: No. | E526: 1.00
A528: 3.10.1.4 | C528: "P" trap | D528: No. | E528: 1.00
A530: 3.10.2 | B530: PQF 5.1 | C530: Sanitary plumbing
A532: 3.10.2.1 | C532: uPVC, soil and vent pipes
A534: 3.10.2.2 | C534: 50mm pipes | D534: m | E534: 10.00
A536: 3.10.2.3 | C536: 110mm pipes | D536: m | E536: 100.00
A538: 3.10.3 | B538: PQF 5.1 | C538: Extra over uPVC, soil, vent pipes for fittings
A540: 3.10.3.1 | C540: 110mm access bend with anti-siphon horn | D540: No. | E540: 1.00
A542: 3.10.3.2 | C542: 110mm Pan connector | D542: No. | E542: 1.00
A544: 3.10.3.3 | C544: 110mm x 50mm eccentric reducer | D544: No. | E544: 1.00
A546: 3.10.3.4 | C546: 110mm junction | D546: No. | E546: 1.00
A548: 3.10.3.5 | C548: 110mm air vent cowl | D548: No. | E548: 1.00
A550: 3.10.3.6 | C550: 110mm GI vent valve | D550: No. | E550: 1.00
A552: 3.10.3.7 | C552: 110mm coupling | D552: No. | E552: 15.00
A554: 3.10.3.8 | C554: 50mm 90 degree bends | D554: No. | E554: 4.00
A556: 3.10.3.9 | C556: 50mm to 110 90 degree connector | D556: No. | E556: 1.00
C573: CARRIED FORWARD TO SUMMARY
A574: ITEM NO | B574: PAYMENT REFERS | C574: SHORT DESCRIPTION | D574: UNIT | E574: QUANTITY | F574: RATE | G574: AMOUNT
C576: BILL NO. 11
A578: 3.11 | C578: GLAZING
A580: 3.11.1 | C580: Windor glazing
A582: 3.11.1.1 | C582: Type C1: 4mm obscured glazing | D582: m² | E582: =0.6*0.9 -> 0.54
A584: 3.11.1.2 | C584: Type C2:clear glazing | D584: m² | E584: =1.5*1.2 -> 1.80
C586: Mirrors
A588: 3.11.1.3 | C588: Stainless steel mirrors 500x600x13mm, concealed thief resistant fixings, plugged and screwed to the wall, stainless steel screws | D588: No. | E588: 1.00
C631: CARRIED FORWARD TO SUMMARY
A632: ITEM NO | B632: PAYMENT REFERS | C632: SHORT DESCRIPTION | D632: UNIT | E632: QUANTITY | F632: RATE | G632: AMOUNT
C634: BILL NO. 12
A636: 3.12 | C636: PAINTWORK
A638: 3.12.1 | C638: On floated plaster
A640: 3.12.1.1 | B640: PQH 4.1 | C640: Apply one coat plascon merit plaster prime, two coats double velvet pure acrylic
A642: 3.12.1.2 | C642: On internal walls | D642: m² | E642: =A2*3+6*3 -> 57.60
A644: 3.12.2 | C644: On smooth concrete
A646: 3.12.2.1 | B646: PQH 4.1 | C646: Prepare areas with slash coat and apply one coat universal undercoat and two coats plascon acrylic white
A648: 3.12.2.2 | C648: On soffits | D648: m² | E648: =3.9*3.3 -> 12.87
A650: 3.12.3 | C650: On metals
A652: 3.12.3.1 | C652: One coat universal undercoat and two coats plascon
B654: PQH 4.2 | C654: On door frames | D654: m² | E654: =5*0.3*2 -> 3.00
A656: 3.12.3.2 | C656: On wood
A658: 3.12.3.2.1 | B658: PQH 4.2 | C658: One coat undercoat and apply three coats clear matt varnish plascon polyurethane matt varnish
A660: 3.12.3.2.2 | C660: On doors | D660: m² | E660: =0.85*2.1*2 -> 3.57
C686: CARRIED FORWARD TO SUMMARY
A687: ITEM NO | B687: PAYMENT REFERS | C687: SHORT DESCRIPTION | D687: UNIT | E687: QUANTITY | F687: RATE | G687: AMOUNT
C689: BILL NO. 13
A691: 3.13 | C691: PROVISIONAL SUM
A693: 3.13.1 | C693: ELECTRICAL | D693: SUM | E693: 1.00 | F693: 25,000.00 | G693: =E693*F693 -> 25,000.00
A695: 3.13.2 | C695: WATER CONNECTION | D695: SUM | E695: 1.00 | F695: 10,000.00 | G695: =E695*F695 -> 10,000.00
A697: 3.13.3 | C697: CALCAMITE SEPTIC TANL OR SIMILAR APPROVED SUPPLY AND INSTALLATION | D697: SUM | E697: 1.00 | F697: 40,000.00 | G697: 40,000.00
C734: CARRIED FORWARD TO SUMMARY
B735: SUMMARY
C737: Page 1 - Earthwork
C738: Page 2 - Concrete & Formwork
C739: Page 3 - Masonry
C740: Page 4 - Waterproofing
C741: Page 5 - Carpentry & Joinery
C742: Page 6 - Floor Coverings & Linings
C743: Page 7 - Ironmongery
C744: Page 8 - Metalwork
... 6 more rows

Sheet 4-GUARD HOUSE 2
A1: ITEM NO | B1: PAYMENT REFERS | C1: SHORT DESCRIPTION | D1: UNIT | E1: QUANTITY | F1: RATE | G1: AMOUNT
A2: 4 | C2: GUARD HOUSE 2
A3: 3
A4: 4.1 | C4: BILL NO. 1
C6: EARTHWORKS
A8: 4.1.1 | C8: Site clearance
A10: 4.1.1.1 | B10: SANS 1200C 8.2.1 | C10: Digging up and remoing rubbish, debris, vegetation, hedge, shrubs, bush etc and trees not exceeding 200mm girth | D10: m² | E10: 50.00
A12: 4.1.1.2 | B12: 8.2.10 | C12: Remove top 150mm, around the building | D12: m² | E12: 30
A14: 4.1.2 | B14: SANS 1200DA | C14: EARTHFILLING
A16: 4.1.2.1 | B16: 8.3.4 | C16: Backfill with G5 material to create level platform compacted to 95% AASHTO MOD. | D16: m³ | E16: =3.6*3.4*0.3 -> 4
A18: 4.1.2.2 | C18: Backfilling to trenches | D18: m³ | E18: =(3.6+3.6+3.5)*2*0.5*0.25 -> 3
A20: 4.1.3 | B20: 8.3.2 | C20: EXCAVATIONS
C22: Excavate in earth not exceeding 2m deep
A24: 4.1.3.1 | C24: Trenches | D24: m³ | E24: =A2 -> 4
A25: 4.1.3.2 | C25: Extra over excavation in soft rock | D25: m³ | E25: 1
A26: 4.1.3.3 | C26: Extra over excavation in hard rock | D26: m³ | E26: 1
C28: Extraover all excavations for carting away
A30: 4.1.3.4 | B30: 8.3.3 | C30: Surplus material from excavations or stockpile on site to a dumping site | D30: m³ | E30: =E24 -> 4
C32: Keeping excavation free of water
A34: 4.1.3.5 | C34: Keeping excavations free of water other than subterranean water | D34: item | E34: 1
B36: 8.3.7 | C36: Risk of collapse
A38: 4.1.3.6 | C38: Sides of excavations not exceeding 1.5m deep | D38: m² | E38: =A2*0.7*2 -> 6
B40: 8.3.9 | C40: Filling etc
A42: 4.1.3.7. | C42: Earth filling obtained from excavations and/or prescibed stock piles on site, compacted to 95 Mod AASHTO density
A44: 4.1.3.8 | C44: Under floors | D44: m³ | E44: =3.6*3 -> 11
A46: 4.1.3.9 | C46: Backfilling to trenches, holes etc | D46: m³ | E46: =A2*0.24*2*0.5 -> 1
C48: Weed killers, insecticides, etc
A49: 4.1.3.10 | C49: Bottom and side of trenchs | D49: m² | E49: =A2*2.1 -> 8
A50: 4.1.3.11 | C50: Bottom of surfacebed | D50: m² | E50: =3.6*3 -> 11
C52: CARRIED FORWARD
A53: ITEM NO | B53: PAYMENT REFERS | C53: SHORT DESCRIPTION | D53: UNIT | E53: QUANTITY | F53: RATE | G53: AMOUNT
A55: 4.2 | C55: BILL NO. 2
B57: SANS1200 GA | C57: CONCRETE, FORMWORK AND REINFORCEMENT
A59: 4.2.1. | B59: 8.4.2 | C59: 15MPa/19MM CONCRETE
A61: 4.2.1.1. | C61: Surface blinding under footings and bases | D61: m³ | E61: =A2*0.7*0.05 -> 0.1
A63: 4.2.2. | B63: 8.4.3 | C63: CONCRETE FOUNDATION
A65: 4.2.2.1 | C65: 25MPa/19mm concrete footing | D65: m³ | E65: =A2*0.7*0.2 -> 1
A66: 4.2.2.2 | C66: 20MPa/19mm surfacebed | D66: m³ | E66: =3.6*3.1 -> 11
A67: 4.2.2.3 | C67: 20MPa/19mm Apron | D67: m³ | E67: =(A2+4)*1*0.05 -> 0
A69: 4.2.3 | B69: 8.4.3 | C69: CONCRETE SLAB
A71: 4.2.3.1 | C71: 25MPa/19mm slabs including beams andinverted beams | D71: m³ | E71: =3.9*3.3*0.17 -> 2
A73: 4.2.4 | B73: 8.3.1 | C73: HIGH STRENGTH STEEL REINFORCEMENT
A75: 4.2.4.1 | C75: Y12 Bars | D75: t | E75: =(A2*4*0.888*0.001)+(14*3.3*0.888*2*0.001)+(11*0.888*3.9*2*0.001) -> 0.17
A77: 4.2.5 | B77: 8.3.1 | C77: MILD STRENGTH STEEL
A79: 4.2.5.1 | C79: R8 bars | D79: t | E79: =A2/0.3*2*0.4*0.001 -> 0.01
B81: 8.3.2 | C81: Fabric Reinforcement
A83: 4.2.5.2. | C83: Mesh ref 193 | D83: m² | E83: =3.6*3 -> 11
A84: 4.2.5.3 | C84: Mesh ref 100 | D84: m² | E84: =A2*1+4*0.6 -> 6
A86: 4.2.6 | B86: 8.4.4 | C86: CONCRETE FINISHES
A87: 4.2.6.1 | C87: Woodfloat finishing to surface bed | D87: m² | E87: =3.6*3 -> 11
A88: 4.2.6.2 | C88: Woodfloat finishing to apron | D88: m² | E88: =E84 -> 6
A89: 4.2.6.3 | C89: Woodfloat finishing to roof slab | D89: m² | E89: =3.6*3.5 -> 13
A91: 4.2.6.4 | C91: 50mm diameter sleeves | D91: m | E91: 50
A93: 4.2.7 | B93: 8.2 | C93: FORMWORK
A95: 4.2.7.1 | B95: 8.2.2 | C95: Formwork to soffit of concrete slab | D95: m² | E95: =3.9*3.3 -> 13
A96: 4.2.7.2 | C96: Formwork to sides of concrete not exceeding 300mm | D96: m | E96: =3.9*2+3.3*2 -> 14
A98: 4.2.8 | C98: Prescribed density tests on filling
A100: 4.2.8.1. | C100: Modified AASHTO Density tests | D100: No | E100: 2
C101: Concrete Sundries
A103: 4.2.8.2 | C103: Making and testing 150x150x150mm concrete test cubes | D103: Item | E103: 2
C105: CARRIED FORWARD TO SUMMARY
A106: ITEM NO | B106: PAYMENT REFERS | C106: SHORT DESCRIPTION | D106: UNIT | E106: QUANTITY | F106: RATE | G106: AMOUNT
C108: BILL NO. 3
A110: 4.3 | C110: MASONRY
B112: PQA 15.1 | C112: Brickwork of NFP bricks in class II mortar
A114: 4.3.1 | C114: One brick wall in foundation | D114: m² | E114: =A2*0.5 -> 2
A116: 4.3.2 | B116: PQA 15.1 | C116: Brickwork of FBX bricks in class II mortar
A118: 4.3.2.1. | C118: One brickwall in supperstructure | D118: m² | E118: =A2*3 -> 12
A120: 4.3.2.2 | C120: 115mm common brick | D120: m² | E120: =3*3 -> 9
A122: 4.3.3 | C122: Brickwork reinforcement
A124: 4.3.3.1 | B124: PQA 15.1 | C124: a) Brick reinforcement 75mm wide built into brick walls with sufficient laps at end joints, angles and intersections (measured net) | D124: m | E124: =2700/340*3 -> 24
A126: 4.3.3.2 | B126: PQA 15.1 | C126: b) Brick reinforcement 150mm wide built into brick walls with sufficient laps at end joints, angles and intersections (measured net) | D126: m | E126: =3500/255*A2 -> 55
A128: 4.3.3.4 | C128: JOINTS IN WALLS, FLOORS AND ROOF
A130: 4.3.4.1 | C130: Maltoid on walls | D130: m | E130: =A2+3 -> 7
A132: 4.3.4.2 | C132: Saw cut joints on floor and apron | D132: m | E132: 12
C134: Prestressed fabricated Lintels
A136: 4.3.4.3 | B136: PQA 15.5 | C136: 110x170mm lintel in lengths not exceeding 3m | D136: No. | E136: 12.00
C158: CARRIED FORWARD TO SUMMARY
A159: ITEM NO | B159: PAYMENT REFERS | C159: SHORT DESCRIPTION | D159: UNIT | E159: QUANTITY | F159: RATE | G159: AMOUNT
C161: BILL NO. 4
A163: 4.4 | C163: WATERPROOFING
A165: 4.4.1. | B165: PQA 15.4 | C165: DPC 250micron in solid walls | D165: m | E165: =A2 -> 4.00
A167: 4.4.2 | C167: 170micron dpm under surfacebed laid with 150mm overlaps | D167: m² | E167: =3.6*3 -> 10.80
A169: 4.4.3 | B169: PQA 16.4 | C169: Bituminous aluminium paint finish to concrete roof | D169: m² | E169: =3.9*3.3 -> 12.87
A171: 4.4.4 | B171: PQA 16.4 | C171: double malthoid between concrete and brick surfaces | D171: m | E171: =A2+3 -> 7.00
C216: CARRIED FORWARD TO SUMMARY
A217: ITEM NO | B217: PAYMENT REFERS | C217: SHORT DESCRIPTION | D217: UNIT | E217: QUANTITY | F217: RATE | G217: AMOUNT
C219: BILL NO. 5
A221: 4.5 | C221: CARPENTRY AND JOINERY
A223: 4.5.1 | C223: Doors etc
A225: 4.5.2 | C225: 44mm solid core masonite door with hardwood edge strips on both side 877x2100mm | D225: no. | E225: 2.00
C275: CARRIED FORWARD TO SUMMARY
A276: ITEM NO | B276: PAYMENT REFERS | C276: SHORT DESCRIPTION | D276: UNIT | E276: QUANTITY | F276: RATE | G276: AMOUNT
C278: BILL NO. 6
A280: 4.6 | C280: FLOOR COVERINGS, WALL LINNINGS ETC
A281: 4.6.1 | B281: PQB 7.5.1 | C281: Floor tiles | D281: m² | E281: =3.6*3.5 -> 12.60
A283: 4.6.2 | B283: PQB 7.5.1 | C283: Walls tiles | D283: m² | E283: 1.00
C335: CARRIED FORWARD TO SUMMARY
A336: ITEM NO | B336: PAYMENT REFERS | C336: SHORT DESCRIPTION | D336: UNIT | E336: QUANTITY | F336: RATE | G336: AMOUNT
C338: BILL NO. 7
A340: 4.7 | C340: IRONMONGERY
C342: Hinges, Bolts etc
A344: 4.7.1 | C344: Brass hinges with nylon washers | D344: No | E344: 4.00
C346: Locks
A347: 4.7.2
C348: 2 lever motice lockest and handles | D348: No. | E348: 2.00
A350: 4.7.3 | C350: Bathroom fittings
A352: 4.7.3.1 | C352: Satin stainless steel paper towel dispensor | D352: No. | E352: 1.00
A354: 4.7.3.2 | C354: Toilet roll holder | D354: No. | E354: 1.00
C396: CARRIED FORWARD TO SUMMARY | G396: =SUM(G339:G395) -> 0.00
A397: ITEM NO | B397: PAYMENT REFERS | C397: SHORT DESCRIPTION | D397: UNIT | E397: QUANTITY | F397: RATE | G397: AMOUNT
C399: BILL NO. 8
A401: 4.8 | C401: METALWORK
C403: Welded screens
A404: 4.8.1
C405: Security mild steel gate | D405: No. | E405: 1.00
A407: 4.8.2 | C407: Prestressed steel door frames
A409: 4.8.2.1 | B409: PQA 15.3 | C409: 1.2mm double rebate frame suitable for one brick wall | D409: No. | E409: 1.00
A411: 4.8.2.2 | C411: 1.2mm rebate frame suitable for half brick wall | D411: No. | E411: 1.00
A413: 4.8.3 | C413: Window frames
A415: 4.8.3.1 | B415: PQA 15.3 | C415: Type C1 | D415: No | E415: 1.00
A417: 4.8.3.2. | C417: Type C2 | D417: No | E417: 3.00
C454: CARRIED FORWARD TO SUMMARY
A455: ITEM NO | B455: PAYMENT REFERS | C455: SHORT DESCRIPTION | D455: UNIT | E455: QUANTITY | F455: RATE | G455: AMOUNT
C457: BILL NO. 9
A459: 4.9 | C459: PLASTERING
A461: 4.9.1 | C461: SCREED
A463: 4.9.1.1 | B463: PQA 17.1 | C463: 3:1 Cement plaster screed woodfloated on concrete
A465: 4.9.1.2 | C465: 30mm thick screed on floors | D465: m² | E465: =3.2*2.8 -> 8.96
A467: 4.9.1.3 | C467: 50mm thick screed on roof | D467: m² | E467: =3.6*3.5 -> 12.60
A469: 4.9.2 | C469: Internal Plaster
A471: 4.9.2.1 | B471: PQA 17.1 | C471: One coat cement plaster and one coat rhinolite plaster
A473: 4.9.2.2 | C473: On walls | D473: m² | E473: =(A2-0.9)*3 -> 9.30
A475: 4.9.2.3 | C475: on soffit of concrete slab | D475: m² | E475: =3.9*3.3 -> 12.87
C513: CARRIED FORWARD TO SUMMARY
A514: ITEM NO | B514: PAYMENT REFERS | C514: SHORT DESCRIPTION | D514: UNIT | E514: QUANTITY | F514: RATE | G514: AMOUNT
C516: BILL NO. 10
A518: 4.10 | C518: PLUMBING AND DRAINAGE
A520: 4.10.1 | B520: PQF 5.1 | C520: Sanitary fittings
A522: 4.10.1.1 | C522: Waste chamber | D522: No. | E522: 1.00
A524: 4.10.1.2 | C524: Wash hand basin | D524: No. | E524: 1.00
A526: 4.10.1.3 | C526: Basin waste union | D526: No. | E526: 1.00
A528: 4.10.1.4 | C528: "P" trap | D528: No. | E528: 1.00
A530: 4.10.2 | B530: PQF 5.1 | C530: Sanitary plumbing
A532: 4.10.2.1 | C532: uPVC, soil and vent pipes
A534: 4.10.2.2 | C534: 50mm pipes | D534: m | E534: 10.00
A536: 4.10.2.3 | C536: 110mm pipes | D536: m | E536: 100.00
A538: 4.10.3 | B538: PQF 5.1 | C538: Extra over uPVC, soil, vent pipes for fittings
A540: 4.10.3.1 | C540: 110mm access bend with anti-siphon horn | D540: No. | E540: 1.00
A542: 4.10.3.2 | C542: 110mm Pan connector | D542: No. | E542: 1.00
A544: 4.10.3.3 | C544: 110mm x 50mm eccentric reducer | D544: No. | E544: 1.00
A546: 4.10.3.4 | C546: 110mm junction | D546: No. | E546: 1.00
A548: 4.10.3.5 | C548: 110mm air vent cowl | D548: No. | E548: 1.00
A550: 4.10.3.6 | C550: 110mm GI vent valve | D550: No. | E550: 1.00
A552: 4.10.3.7 | C552: 110mm coupling | D552: No. | E552: 15.00
A554: 4.10.3.8 | C554: 50mm 90 degree bends | D554: No. | E554: 4.00
A556: 4.10.3.9 | C556: 50mm to 110 90 degree connector | D556: No. | E556: 1.00
C573: CARRIED FORWARD TO SUMMARY
A574: ITEM NO | B574: PAYMENT REFERS | C574: SHORT DESCRIPTION | D574: UNIT | E574: QUANTITY | F574: RATE | G574: AMOUNT
C576: BILL NO. 11
A578: 4.11 | C578: GLAZING
A580: 4.11.1 | C580: Windor glazing
A582: 4.11.1.1 | C582: Type C1: 4mm obscured glazing | D582: m² | E582: =0.6*0.9 -> 0.54
A584: 4.11.1.2 | C584: Type C2:clear glazing | D584: m² | E584: =1.5*1.2 -> 1.80
C586: Mirrors
A588: 4.11.1.3 | C588: Stainless steel mirrors 500x600x13mm, concealed thief resistant fixings, plugged and screwed to the wall, stainless steel screws | D588: No. | E588: 1.00
C631: CARRIED FORWARD TO SUMMARY
A632: ITEM NO | B632: PAYMENT REFERS | C632: SHORT DESCRIPTION | D632: UNIT | E632: QUANTITY | F632: RATE | G632: AMOUNT
C634: BILL NO. 12
A636: 4.12 | C636: PAINTWORK
A638: 4.12.1 | C638: On floated plaster
A640: 4.12.1.1 | B640: PQH 4.1 | C640: Apply one coat plascon merit plaster prime, two coats double velvet pure acrylic
A642: 4.12.1.2 | C642: On internal walls | D642: m² | E642: =A2*3+6*3 -> 30.00
A644: 4.12.2 | C644: On smooth concrete
A646: 4.12.2.1 | B646: PQH 4.1 | C646: Prepare areas with slash coat and apply one coat universal undercoat and two coats plascon acrylic white
A648: 4.12.2.2 | C648: On soffits | D648: m² | E648: =3.9*3.3 -> 12.87
A650: 4.12.3 | C650: On metals
A652: 4.12.3.1 | C652: One coat universal undercoat and two coats plascon
B654: PQH 4.2 | C654: On door frames | D654: m² | E654: =5*0.3*2 -> 3.00
A656: 4.12.3.2 | C656: On wood
A658: 4.12.3.2.1 | B658: PQH 4.2 | C658: One coat undercoat and apply three coats clear matt varnish plascon polyurethane matt varnish
A660: 4.12.3.2.2 | C660: On doors | D660: m² | E660: =0.85*2.1*2 -> 3.57
C686: CARRIED FORWARD TO SUMMARY
A687: ITEM NO | B687: PAYMENT REFERS | C687: SHORT DESCRIPTION | D687: UNIT | E687: QUANTITY | F687: RATE | G687: AMOUNT
C689: BILL NO. 13
A691: 4.13 | C691: PROVISIONAL SUM
A693: 4.13.1 | C693: ELECTRICAL | D693: SUM | E693: 1.00 | F693: 25,000.00
A695: 4.13.2 | C695: WATER CONNECTION | D695: SUM | E695: 1.00 | F695: 10,000.00
A697: 4.13.3 | C697: CALCAMITE SEPTIC TANL OR SIMILAR APPROVED SUPPLY AND INSTALLATION | D697: SUM | E697: 1.00 | F697: 40,000.00
C734: CARRIED FORWARD TO SUMMARY
B735: SUMMARY
C737: Page 1 - Earthwork
C738: Page 2 - Concrete & Formwork
C739: Page 3 - Masonry
C740: Page 4 - Waterproofing
C741: Page 5 - Carpentry & Joinery
C742: Page 6 - Floor Coverings & Linings
C743: Page 7 - Ironmongery
C744: Page 8 - Metalwork
C745: Page 9 - Plastering
... 5 more rows

Sheet 5-BOUNDARY WALL
A1: ITEM NO. | B1: PAYMENT REFERS | C1: DESCRIPTION | D1: UNIT | E1: QUANTITY | F1: RATE | G1: AMOUNT
A3: 693 | C3: JOHANNESBURG WATER LAANGLAGTE DEPOT
A5: 5 | C5: Construction of a Boundary wall
C7: Site clearance
A9: 5.1 | B9: SANS1200 C 8.2.1 | C9: Dig up and remove rubbish, debris, vegetation, hedges, shrubs and trees not exceeding 200mm girth, bush etc. | D9: m² | E9: =A3*3 -> 2,079.00
A11: 5.2 | C11: EXCAVATION, FILLING, ETC.
B13: SANS 1200DA | C13: Excavation in earth not exceeding 2m. deep
A15: 5.2.1 | B15: 8.3.2 | C15: Trenches. | D15: m³ | E15: =(A3*0.75*0.7)+(A3/3.2*0.7*1.3*0.6) -> 482.07
A17: 5.2.2 | C17: Extra over Blasting of trench and hole excavations in earth for excavation in
A19: 5.2.2.1 | C19: Soft rock. | D19: m³ | E19: =0.1*E15 -> 48.21
A20: 5.2.2.2 | C20: Hard rock. | D20: m³ | E20: =0.05*E15 -> 24.10
C22: Extra over all excavations for carting away
A24: 5.2.3 | B24: 8.3.3 | C24: Surplus material from excavations and /or stock pile on site to a dumping site to be located by the contractor (up to a radius of 5km - return distance not covered) | D24: m³ | E24: =(A3*0.7*0.35)+(A3*0.23*0.4) -> 233.54
C26: Risk of collapse of excavations
A28: 5.2.4 | B28: 8.3.7 | C28: Sides of trench and hole excavations not exceeding 1,5m deep including keeping excavations free from water | D28: m² | E28: =A3*2*0.75 -> 1,039.50
C30: Keeping excavations free of water
A32: 5.2.5 | C32: Keeping excavations free of water other than subterranean water | D32: Item | E32: 1.00
C34: Earth filling obtained from excavations and/or prescribed stock piles on site compacted to 95% Mod AASHTO density
A36: 5.2.6 | B36: 8.3.9 | C36: Backfill to trenches, holes, etc. | D36: m³ | E36: =E15-E24 -> 248.53
C38: SOIL POISONING
C40: Weedkillers, Insecticides, etc. Environmentaly friendly and SABS approved.
A42: 5.3 | C42: Bottoms and sides of trenches etc. | D42: m² | E42: =A3*(0.75+0.75+0.7) -> 1,524.60
A44: 5.4 | B44: SANS 1200GA | C44: 25MPa/20mm. concrete
A46: 5.4.1 | B46: 8.4.3 | C46: Strip footings and bases | D46: m³ | E46: =A3*0.7*0.35+(A3/3.2*0.3*1.3*0.6) -> 220.46
A48: 5.4.2 | B48: 8.4.3 | C48: Column concrete in-fill | D48: m³ | E48: =A3/3.2*0.22*0.22*3 -> 31.44
A50: 5.5 | C50: REINFORCEMENT
C52: Hight strengh steel reinforcement to structural concrete work
A54: 5.5.1 | B54: 8.3.1 | C54: 12mm. diameter bars | D54: t | E54: =(A3*1.1*4*0.888*0.001)+(A3/3.2*4*1.2*0.888*0.001) -> 3.63
C56: Mild strengh steel reinforcement to structural concrete work
A58: 5.5.2 | B58: 8.3.1 | C58: 8mm diameter bars | D58: t | E58: =(A3/0.3*2*0.4*0.001)+(A3/3.2*10*0.4*0.7*0.001) -> 2.45
A60: 5.6 | C60: PRECAST WALL
A62: 5.6.1 | C62: 3M High Concrete Heavy duty Prestressed 150mm thick wall with concrete columns complete with Design, Surverying, Engineers Certificate, supply and Installation. | D62: m | E62: 835.00
A64: 5.6.2 | C64: 1m High 40x40x2 Palisade fixed to concrete palisade | D64: m | E64: 835.00
A66: 5.6.3 | C66: Razor wire
A68: 5.6.3.1 | C68: Supply and install 800mm diameter spiral razor wire including all accessories. | D68: m | E68: 835.00
A70: 5.6.3.2 | C70: Supply and install razor wire flat wrap including all accessories. | D70: m | E70: =E68*2 -> 1,670.00
C72: ELECTRIC GATE
A74: 5.6.4 | C74: Supply and install double sliding gate and boom to match security fencing as per drawing | D74: No | E74: 1
C76: TOTAL CARRIED TO SUMMARY | G76: =SUM(G9:G75) -> 0

Sheet 6-Summary
B2: SUMMARY OF BILL OF QUANTITIES: LAANGLATGE DEPOT
B4: BILL | C4: DESCRIPTION | J4: TOTAL
B6: 1 | C6: PRELIMINARY AND GENERAL | I6: R
B8: 2 | C8: DAY WORKS & PROVISIONAL SUMS | I8: R
B10: 3 | C10: GUARD HOUSE No. 1 | I10: R
B12: 4 | C12: GUARD HOUSE No. 2 | I12: R
B14: 5 | C14: BOUNDARY WALL | I14: R
T32: `
B38: TOTAL FOR SCHEDULE OF QUANTITIES | I38: R
B40: ADD 10 % CONTINGENCY
B42: SUB-TOTAL
B44: ADD 15 % VAT | I44: R
B46: TOTAL FOR TENDER (FORWARD TO THE FORM OF TENDER) | I46: R

Sheet 450mm Bedding (hidden)
A1: BEDDING QUANTITIES
A2: Class B (Concrete and vitrified clay) | E2: =+(PI()) -> 3.1
A3: Length of pipe(m) | B3: =Calcs!C130 -> 143 | C3: sewer
A4: Diameter(mm) | B4: 110
A5: (100mm bed,300mm sa) | C5: (dia/4 bed,300mm sa) | E5: (dia/4 bed,400mm sa) | G5: (200mm bed,400mm sa) | I5: (200mm bed,500mm sa)
A6: For 0 to 400 diam | C6: For 401 to 700 diam | E6: For 701 to 800 diam | G6: For 801 to 1000 diam | I6: For 1001 to 2000 diam
A7: Granular cradle(m3) | B7: =+(((2*0.3+$B$4/1000)*(0.1+$B$4/2000))-(PI()*($B$4/1000)^2/8))*$B$3 -> 15.1 | C7: Granular cradle(m3) | D7: =+(((2*0.3+$B$4/1000)*(0.75*$B$4/1000))-(PI()*($B$4/1000)^2/8))*$B$3 -> 7.7 | E7: Granular cradle(m3) | F7: =+(((2*0.4+$B$4/1000)*(0.75*$B$4/1000))-(PI()*($B$4/1000)^2/8))*$B$3 -> 10.1 | G7: Granular cradle(m3) | H7: =+(((2*0.4+$B$4/1000)*(0.2+$B$4/2000))-(PI()*($B$4/1000)^2/8))*$B$3 -> 32.5 | I7: Granular cradle(m3) | J7: =+(((2*0.4+$B$4/1000)*(0.2+$B$4/2000))-(PI()*($B$4/1000)^2/8))*$B$3 -> 32.5
A8: Fill Blanket(m3) | B8: =+(((2*0.3+$B$4/1000)*(0.3+$B$4/2000))-(PI()*($B$4/1000)^2/8))*$B$3 -> 35.4 | C8: Fill Blanket | D8: =+(((2*0.3+$B$4/1000)*(0.3+$B$4/2000))-(PI()*($B$4/1000)^2/8))*$B$3 -> 35.4 | E8: Fill Blanket | F8: =+(((2*0.4+$B$4/1000)*(0.3+$B$4/2000))-(PI()*($B$4/1000)^2/8))*$B$3 -> 45.5 | G8: Fill Blanket | H8: =+(((2*0.4+$B$4/1000)*(0.3+$B$4/2000))-(PI()*($B$4/1000)^2/8))*$B$3 -> 45.5 | I8: Fill Blanket | J8: =+(((2*0.5+$B$4/1000)*(0.3+$B$4/2000))-(PI()*($B$4/1000)^2/8))*$B$3 -> 55.7
A10: Class C (Steel)
A11: (100mm bed,300mm sa) | C11: (100mmbed,400mm sa) | E11: (dia/8 bed,400mm sa) | G11: (dia/8 bed,500mm sa) | I11: (200mm bed,500mm sa)
A12: For 0 to 700 diam | C12: For 701 to 800 diam | E12: For 801 to 1000 diam | G12: For 1001 to 1600 diam | I12: For 1601 to 20000 diam
A13: Granular cradle(m3) | B13: =+(((2*0.3+$B$4/1000)*(0.1+$B$4/6000))-($B$4/1000)^2*(PI()-2)/16)*$B$3 -> 11.9 | C13: Granular cradle(m3) | D13: =+(((2*0.4+$B$4/1000)*(0.1+$B$4/6000))-($B$4/1000)^2*(PI()-2)/16)*$B$3 -> 15.3 | E13: Granular cradle(m3) | F13: =+(((2*0.4+$B$4/1000)*(7/24*$B$4/1000))-($B$4/1000)^2*(PI()-2)/16)*$B$3 -> 4.1 | G13: Granular cradle(m3) | H13: =+(((2*0.5+$B$4/1000)*(7/24*$B$4/1000))-($B$4/1000)^2*(PI()-2)/16)*$B$3 -> 5.0 | I13: Granular cradle(m3) | J13: =+(((2*0.5+$B$4/1000)*(0.2+$B$4/6000))-($B$4/1000)^2*(PI()-2)/16)*$B$3 -> 34.5
A14: Fill Blanket(m3) | B14: =+((2*0.3+$B$4/1000)*(0.3+$B$4/1000+0.1)-(PI()*($B$4/1000)^2/4))*$B$3-B13 -> 38.5 | C14: Fill Blanket | D14: =+((2*0.4+$B$4/1000)*(0.3+$B$4/1000+0.1)-(PI()*($B$4/1000)^2/4))*$B$3-D13 -> 49.7 | E14: Fill Blanket | F14: =+((2*0.4+$B$4/1000)*(0.3+1.125*$B$4/1000)-(PI()*($B$4/1000)^2/4))*$B$3-F13 -> 49.7 | G14: Fill Blanket | H14: =+((2*0.5+$B$4/1000)*(0.3+1.125*$B$4/1000)-(PI()*($B$4/1000)^2/4))*$B$3-H13 -> 60.9 | I14: Fill Blanket | J14: =+((2*0.5+$B$4/1000)*(0.3+$B$4/1000+0.2)-(PI()*($B$4/1000)^2/4))*$B$3-J13 -> 60.9
A16: Flexible Pipe
A17: (100mm bed,300mm sa) | C17: (dia/4bed,300mm sa) | E17: (dia/4 bed,400mm sa) | G17: (200 bed,400mm sa) | I17: (200mm bed,500mm sa)
A18: For 0 to 400 diam | C18: For 401 to 700 diam | E18: For 701 to 800 diam | G18: For 801 to 1000 diam | I18: For 1001 to 20000 diam
A19: Granular cradle(m3) | B19: =+(((2*0.3+$B$4/1000)*(0.2+$B$4/1000))-($B$4/1000)^2*(PI())/4)*$B$3 -> 30.1 | C19: Granular cradle(m3) | D19: =+(((2*0.3+$B$4/1000)*(0.1+$B$4/4000+$B$4/1000))-($B$4/1000)^2*(PI())/4)*$B$3 -> 22.8 | E19: Granular cradle(m3) | F19: =+(((2*0.4+$B$4/1000)*(0.1+$B$4/4000+$B$4/1000))-($B$4/1000)^2*(PI())/4)*$B$3 -> 29.5 | G19: Granular cradle(m3) | H19: =+(((2*0.4+$B$4/1000)*(0.3+$B$4/1000))-($B$4/1000)^2*(PI())/4)*$B$3 -> 52.0 | I19: Granular cradle(m3) | J19: =+(((2*0.5+$B$4/1000)*(0.3+$B$4/1000))-($B$4/1000)^2*(PI())/4)*$B$3 -> 63.7
A20: Fill Blanket(m3) | B20: =+((2*0.3+$B$4/1000)*0.2)*$B$3 -> 20.3 | C20: Fill Blanket | D20: =+((2*0.3+$B$4/1000)*0.2)*$B$3 -> 20.3 | E20: Fill Blanket | F20: =+((2*0.4+$B$4/1000)*0.2)*$B$3 -> 26.0 | G20: Fill Blanket | H20: =+((2*0.4+$B$4/1000)*0.2)*$B$3 -> 26.0 | I20: Fill Blanket | J20: =+((2*0.5+$B$4/1000)*0.2)*$B$3 -> 31.7

Sheet 450mm Bedding (2) (hidden)
A1: BEDDING QUANTITIES
A2: Class B (Concrete and vitrified clay) | E2: =+(PI()) -> 3.1
A3: Length of pipe(m) | B3: =Calcs!C137 -> 1154 | C3: all steel pipes
A4: Diameter(mm) | B4: 650
A5: (100mm bed,300mm sa) | C5: (dia/4 bed,300mm sa) | E5: (dia/4 bed,400mm sa) | G5: (200mm bed,400mm sa) | I5: (200mm bed,500mm sa)
A6: For 0 to 400 diam | C6: For 401 to 700 diam | E6: For 701 to 800 diam | G6: For 801 to 1000 diam | I6: For 1001 to 2000 diam
A7: Granular cradle(m3) | B7: =+(((2*0.3+$B$4/1000)*(0.1+$B$4/2000))-(PI()*($B$4/1000)^2/8))*$B$3 -> 421.6 | C7: Granular cradle(m3) | D7: =+(((2*0.3+$B$4/1000)*(0.75*$B$4/1000))-(PI()*($B$4/1000)^2/8))*$B$3 -> 511.7 | E7: Granular cradle(m3) | F7: =+(((2*0.4+$B$4/1000)*(0.75*$B$4/1000))-(PI()*($B$4/1000)^2/8))*$B$3 -> 624.2 | G7: Granular cradle(m3) | H7: =+(((2*0.4+$B$4/1000)*(0.2+$B$4/2000))-(PI()*($B$4/1000)^2/8))*$B$3 -> 687.0 | I7: Granular cradle(m3) | J7: =+(((2*0.4+$B$4/1000)*(0.2+$B$4/2000))-(PI()*($B$4/1000)^2/8))*$B$3 -> 687.0
A8: Fill Blanket(m3) | B8: =+(((2*0.3+$B$4/1000)*(0.3+$B$4/2000))-(PI()*($B$4/1000)^2/8))*$B$3 -> 710.0 | C8: Fill Blanket | D8: =+(((2*0.3+$B$4/1000)*(0.3+$B$4/2000))-(PI()*($B$4/1000)^2/8))*$B$3 -> 710.0 | E8: Fill Blanket | F8: =+(((2*0.4+$B$4/1000)*(0.3+$B$4/2000))-(PI()*($B$4/1000)^2/8))*$B$3 -> 854.3 | G8: Fill Blanket | H8: =+(((2*0.4+$B$4/1000)*(0.3+$B$4/2000))-(PI()*($B$4/1000)^2/8))*$B$3 -> 854.3 | I8: Fill Blanket | J8: =+(((2*0.5+$B$4/1000)*(0.3+$B$4/2000))-(PI()*($B$4/1000)^2/8))*$B$3 -> 998.5
A10: Class C (Steel)
A11: (100mm bed,300mm sa) | C11: (100mmbed,400mm sa) | E11: (dia/8 bed,400mm sa) | G11: (dia/8 bed,500mm sa) | I11: (200mm bed,500mm sa)
A12: For 0 to 700 diam | C12: For 701 to 800 diam | E12: For 801 to 1000 diam | G12: For 1001 to 1600 diam | I12: For 1601 to 20000 diam
A13: Granular cradle(m3) | B13: =+(((2*0.3+$B$4/1000)*(0.1+$B$4/6000))-($B$4/1000)^2*(PI()-2)/16)*$B$3 -> 265.7 | C13: Granular cradle(m3) | D13: =+(((2*0.4+$B$4/1000)*(0.1+$B$4/6000))-($B$4/1000)^2*(PI()-2)/16)*$B$3 -> 313.8 | E13: Granular cradle(m3) | F13: =+(((2*0.4+$B$4/1000)*(7/24*$B$4/1000))-($B$4/1000)^2*(PI()-2)/16)*$B$3 -> 282.4 | G13: Granular cradle(m3) | H13: =+(((2*0.5+$B$4/1000)*(7/24*$B$4/1000))-($B$4/1000)^2*(PI()-2)/16)*$B$3 -> 326.2 | I13: Granular cradle(m3) | J13: =+(((2*0.5+$B$4/1000)*(0.2+$B$4/6000))-($B$4/1000)^2*(PI()-2)/16)*$B$3 -> 552.3
A14: Fill Blanket(m3) | B14: =+((2*0.3+$B$4/1000)*(0.3+$B$4/1000+0.1)-(PI()*($B$4/1000)^2/4))*$B$3-B13 -> 865.9 | C14: Fill Blanket | D14: =+((2*0.4+$B$4/1000)*(0.3+$B$4/1000+0.1)-(PI()*($B$4/1000)^2/4))*$B$3-D13 -> 1060.1 | E14: Fill Blanket | F14: =+((2*0.4+$B$4/1000)*(0.3+1.125*$B$4/1000)-(PI()*($B$4/1000)^2/4))*$B$3-F13 -> 1060.1 | G14: Fill Blanket | H14: =+((2*0.5+$B$4/1000)*(0.3+1.125*$B$4/1000)-(PI()*($B$4/1000)^2/4))*$B$3-H13 -> 1254.4 | I14: Fill Blanket | J14: =+((2*0.5+$B$4/1000)*(0.3+$B$4/1000+0.2)-(PI()*($B$4/1000)^2/4))*$B$3-J13 -> 1254.4
A16: Flexible Pipe
A17: (100mm bed,300mm sa) | C17: (dia/4bed,300mm sa) | E17: (dia/4 bed,400mm sa) | G17: (200 bed,400mm sa) | I17: (200mm bed,500mm sa)
A18: For 0 to 400 diam | C18: For 401 to 700 diam | E18: For 701 to 800 diam | G18: For 801 to 1000 diam | I18: For 1001 to 20000 diam
A19: Granular cradle(m3) | B19: =+(((2*0.3+$B$4/1000)*(0.2+$B$4/1000))-($B$4/1000)^2*(PI())/4)*$B$3 -> 843.1 | C19: Granular cradle(m3) | D19: =+(((2*0.3+$B$4/1000)*(0.1+$B$4/4000+$B$4/1000))-($B$4/1000)^2*(PI())/4)*$B$3 -> 933.3 | E19: Granular cradle(m3) | F19: =+(((2*0.4+$B$4/1000)*(0.1+$B$4/4000+$B$4/1000))-($B$4/1000)^2*(PI())/4)*$B$3 -> 1143.9 | G19: Granular cradle(m3) | H19: =+(((2*0.4+$B$4/1000)*(0.3+$B$4/1000))-($B$4/1000)^2*(PI())/4)*$B$3 -> 1206.6 | I19: Granular cradle(m3) | J19: =+(((2*0.5+$B$4/1000)*(0.3+$B$4/1000))-($B$4/1000)^2*(PI())/4)*$B$3 -> 1425.8
A20: Fill Blanket(m3) | B20: =+((2*0.3+$B$4/1000)*0.2)*$B$3 -> 288.5 | C20: Fill Blanket | D20: =+((2*0.3+$B$4/1000)*0.2)*$B$3 -> 288.5 | E20: Fill Blanket | F20: =+((2*0.4+$B$4/1000)*0.2)*$B$3 -> 334.6 | G20: Fill Blanket | H20: =+((2*0.4+$B$4/1000)*0.2)*$B$3 -> 334.6 | I20: Fill Blanket | J20: =+((2*0.5+$B$4/1000)*0.2)*$B$3 -> 380.8

Sheet Calcs (hidden)
B1: ITEM | C1: QUANTITY | D1: UNIT | E1: DESCRIPTION | G1: Formulae
G2: Cylinder Volume | H2: V=πr2h
B3: PORTION A (Cylindrical Portion) | G3: Dome Cap Volume | J3: where a = Radius | M3: (1/3)πh2(3r-h) | O3: =((1/3)*PI()*(C46^2)*((3*C50)-C46))-((1/3)*PI()*(C47^2)*((3*C51)-C47)) -> 28.87162919
B4: Water Tower Outer Wall Dia. | C4: 19.600 | D4: m | E4: Measured from .DWG | G4: Conical Volume | H4: V=1/3πh(a2+ab+b2) where a = Upper Radii and b = lower radii)
B5: Water Tower Inner Wall Dia. | C5: =C4-(C8*2) -> 19.000 | D5: m | E5: Measured from .DWG | G5: Surface Area Cone | H5: A=π(a+b)l where a = Upper Radii and b = lower radii)
B6: Water Tower Outer Wall Radius | C6: =C4/2 -> 9.800 | D6: m | G6: Surface Area Dome | H6: A=2πrh
B7: Water Tower Inner Wall Radius | C7: =C5/2 -> 9.500 | D7: m | G7: Surface area Cylinder | H7: A=2πrh
B8: Water Tower Wall Thickness | C8: 0.300 | D8: m | E8: Measured from .DWG | G8: Area Circle | H8: A=πr2
B9: Circumference of Water Tower Outer Wall | C9: =PI()*C4 -> 61.575 | D9: m
B10: Circumference of Water Tower Inner Wall | C10: =PI()*C5 -> 59.690 | D10: m
B11: Height (Portion A Only) | C11: 5.800 | D11: m | E11: Height from WL (+35.10) to 45 deg Point
B12: Water Tower Wall Height | C12: =C11+0.4 -> 6.200 | D12: m | E12: Full Height of cylindrical portion of Water Tower
B14: PORTION B (Conical Portion)
B15: Area in Cross Section | C15: 27.483 | D15: m2 | E15: Area in section obtained from the .dwg
B16: Height (Portion B Only) | C16: 5.930 | D16: m
B17: Upper Diameter | C17: 19.100 | D17: m
B18: Lower Diameter | C18: =C20*2 -> 7.100 | D18: m
B19: Upper Radius | C19: =C17/2 -> 9.550 | D19: m
B20: Lower Radius | C20: =C19-6 -> 3.550 | D20: m
B21: Cone Staircase Upper Radius | C21: 3.662 | D21: m | E21: Radius from centre of staircase to Outer Wall of staircase
B22: Cone Staircase Lower Radius | C22: 5.200 | D22: m | E22: Radius from centre of staircase to Outer Wall of staircase
B23: Cone Staircase Height | C23: 0.738 | D23: m
B25: Upper Staircase Outer Dia. | C25: 3.400 | D25: m
B26: Upper Staircase Inner Dia. | C26: =C25-(2*C29) -> 2.800 | D26: m
B27: Upper Staircase Outer Radius | C27: =C25/2 -> 1.700 | D27: m
B28: Upper Staircase Inner Radius | C28: =C26/2 -> 1.400 | D28: m
B29: Upper Staircase Wall Thickness | C29: 0.300 | D29: m
B30: Circumference of Upper Staircase Outer Wall | C30: =PI()*C25 -> 10.681 | D30: m
B31: Circumference of Upper Staircase Inner Wall | C31: =PI()*C26 -> 8.796 | D31: m
B32: Upper Staircase Full Height | C32: 11.200 | D32: m | E32: Measured from .DWG
B34: Conical Staircase Height | C34: 1.800 | D34: m
B36: Lower Staircase Outer Dia. | C36: 6.200 | D36: m
B37: Lower Staircase Inner Dia. | C37: =C36-(2*C40) -> 5.600 | D37: m
B38: Lower Staircase Outer Radius | C38: =C36/2 -> 3.100 | D38: m
B39: Lower Staircase Inner Radius | C39: =C37/2 -> 2.800 | D39: m
B40: Lower Staircase Wall Thickness | C40: 0.300 | D40: m
B41: Lower Staircase Full Height | C41: 23.130 | D41: m
B42: Circumference of Lower Staircase Outer Wall | C42: =PI()*C36 -> 19.478 | D42: m
B43: Circumference of Lower Staircase Inner Wall | C43: =PI()*C37 -> 17.593 | D43: m
B45: Dome Roof Thickness | C45: 0.300 | D45: m | E45: Tapers from 0.300m to 0.125m
B46: Dome Outer Height | C46: 2.850 | D46: m
B47: Dome Inner Height | C47: 2.700 | D47: m
B48: Dome Outer Dia. | C48: =C4 -> 19.600 | D48: m
B49: Dome Inner Dia. | C49: =C5 -> 19.000 | D49: m
B50: Dome Outer Radius | C50: =C48/2 -> 9.800 | D50: m
B51: Dome Inner Radius | C51: =C49/2 -> 9.500 | D51: m
B53: WATER VOLUME CAPACITY
B54: Portion A Water Volume | C54: =(PI()*C7^2*C11)-(PI()*C27^2*C11) -> 1591.807 | D54: m3 | E54: Volume of Water Tower Inner Wall - Volume of Upper Staircase Outer Wall
B55: Portion B Water Volume | C55: =(1/3*PI()*C16*(C20^2+(C20*C19)+C19^2))-(PI()*C27^2*5.2)-(1/3*PI()*C23*(C21^2+(C21*C22)+C22^2)) -> 761.957 | D55: m3 | E55: Cone Volume of Portion B - Cylindrical Staircase Outer Wall of Portion B - Conical Volume of Staircse of Portion B
B56: Water Tower Total WATER Volume | C56: =ROUNDUP(SUM(C54:C55),0) -> 2354.000 | D56: m3 | E56: Total Volume of Water Capacity up to WL = +35.10
B57: Water Tower Total WATER Volume | C57: =C56*1000/1000 -> 2354.000 | D57: kl
B59: Base Length | C59: 15.000 | D59: m
B60: Base Width | C60: 15.000 | D60: m
B61: Base Height | C61: 1.850 | D61: m
B62: Blinding Layer Length | C62: 15.500 | D62: m
B63: Blinding Layer Width | C63: 15.500 | D63: m
B64: Blinding Layer thickness | C64: 0.050 | D64: m
B65: Lower Staircase Base Diameter | C65: =C36 -> 6.200 | D65: m
B66: Lower Staircase Base Radius | C66: =C65/2 -> 3.100 | D66: m
B67: Lower Staircase Base Height | C67: =0.6 -> 0.600 | D67: m
B70: BLINDING CONCRETE VOLUME
B71: 125mm Blinding Concrete | C71: =C62*C63*C64 -> 12.013 | D71: m3
B72: Total Blinding Concrete Volume | C72: =ROUNDUP(SUM(C71),0) -> 13.000 | D72: m3
B74: CONCRETE VOLUME
B75: Concrete Base | C75: =C59*C60*C61 -> 416.250 | D75: m3
B76: Lower Staircase Base (0.6m High) | C76: =PI()*C66^2*C67 -> 18.114 | D76: m3
B77: Lower Staircase Wall Volume | C77: =(PI()*C38^2*C41)-(PI()*C39^2*C41) -> 128.617 | D77: m3 | E77: 26m = Lower Staircase Height
B78: Lower Staircase Platform Volume | C78: =(PI()*C39^2*0) -> 0.000 | D78: m3 | E78: 0.00m = Platform Thickness
B79: Upper Staircase Wall Volume | C79: =(PI()*C27^2*C32)-(PI()*C28^2*C32) -> 32.723 | D79: m3 | E79: 11.2m = Upper Staircase Height
B80: Upper Staircase Platform Volume | C80: =(PI()*C28^2*0.2) -> 1.232 | D80: m3
B81: Conical Staircase Wall Volume Upper Portion | C81: =((1/3)*PI()*0.729*(1.831^2+(1.831*2.6)+2.6^2))-((1/3)*PI()*0.729*(1.4^2+(1.4*1.9671)+1.9671^2)) -> 4.802 | D81: m3 | E81: Measured from .dwg: Height = 0.729m Outer Radii: a = 1.831m b = 2.6m Inner Radii: a = 1.4m b = 1.9671m
B82: Conical Staircase Wall Volume Lower Portion | C82: =((1/3)*PI()*1.071*(3.1^2+(3.1*4.1341)+4.1341^2))-((1/3)*PI()*1.071*(1.9671^2+(1.9671*2.8)+2.8^2)) -> 25.010 | D82: m3 | E82: Measured from .dwg: Height = 1.071m Outer Radii: a = 3.1m b = 4.1341m Inner Radii: a = 1.9671m b = 2.8m
B83: Cylindrical Water Tower Wall (Portion A) | C83: =(PI()*C6^2*C12)-(PI()*C7^2*C12) -> 112.777 | D83: m3
B84: Conical Water Tower Wall (Portion B) | C84: =((1/3)*PI()*C16*(4.1341^2+(4.1341*C6)+C6^2))-((1/3)*PI()*C16*(3.4^2+(3.4*C7)+C7^2)) -> 121.310 | D84: m3 | E84: Measured from .dwg: Height = 5.930m Outer Radii: a = 4.1341m b = 9.7m Inner Radii: a = 3.4m b = 9.4m
B85: Dome Roof volume | C85: =(((PI()*C46)/6)*((3*C50^2)+C46^2))-(((PI()*C47)/6)*((3*C51^2)+C47^2)) -> 49.000 | D85: m3 | E85: =((1/3)*PI()*(C46^2)*((3*C50)-C46))-((1/3)*PI()*(C47^2)*((3*C51)-C47)) -> 28.872
B86: Spiral Staircase Volume | D86: m3 | E86: TBC - Concrete or steel?
D87: m3
B88: Total Concrete Volume | C88: =ROUNDUP(SUM(C75:C87),0) -> 910.000 | D88: m3
B90: SURFACE AREA
B91: Dome Outside | C91: =2*PI()*C50*C46 -> 175.489 | D91: m2
B92: Dome Inside | C92: =2*PI()*C51*C47 -> 161.164 | D92: m2
B93: Cylindrical Water Tower Wall Outside | C93: =2*PI()*C6*C12 -> 381.766 | D93: m2
B94: Cylindrical Water Tower Wall Inside | C94: =2*PI()*C7*C12 -> 370.080 | D94: m2
B95: Conical Water Tower Wall Outside | C95: =PI()*(C20+C19)*9.5009 -> 391.008 | D95: m2 | E95: l = 9.5009m
B96: Conical Water Tower Wall Inside | C96: =PI()*(C7+C39)*8.4354 -> 325.957 | D96: m2 | E96: l = 8.4354m
B97: Conical Water Tower Horizontal Lip | C97: =(PI()*3.4^2)-(PI()*2.6^2) -> 15.080 | D97: m2 | E97: Outer Radius of Lip = 3.4m; Inner Radius of Lip = 2.6m
B98: Upper Staircase Outer Wall | C98: =2*PI()*C27*C32 -> 119.632 | D98: m2
B99: Upper Staircase Inner Wall | C99: =2*PI()*C28*C32 -> 98.520 | D99: m2
B100: Lower Staircase Outer Wall | C100: =2*PI()*C38*C41 -> 450.523 | D100: m2
B101: Lower Staircase Inner Wall | C101: =2*PI()*C39*C41 -> 406.924 | D101: m2
B102: Lower Staircase Base Outer | C102: =2*PI()*C60*C61 -> 174.358 | D102: m2
B103: Lower Staircase Base Top | C103: =(PI()*C60^2)-(PI()*C38^2) -> 676.668 | D103: m2
B104: Conical Staircase Outside | C104: =PI()*(C27+C38)*1.2403 -> 18.703 | D104: m2 | E104: l = 1.2403m
B105: Conical Staircase Inside | C105: =PI()*(C38+C28)*2.2804 -> 32.238 | D105: m2 | E105: l = 2.2804m
B106: Lower Staircase Floor | C106: =PI()*C39^2 -> 24.630 | D106: m2
B107: Total Surface Area | C107: =ROUNDUP(SUM(C91:C106),0) -> 3823.000 | D107: m2
B110: Site Clearance - Measured from CAD | C110: =1.1*2050 -> 2255 | E110: Measrued from CAD
B111: Blinding area | C111: =C62*C63 -> 240
B112: narrow width on dome outside | C112: =2*PI()*C50*1.1 -> 68
B113: Total Base excavation | C113: =1.1*(C59+1)*(C60+1)*(C61+C67+0.1) -> 718 | D113: m3
B114: Valve Chamber excavation | C114: =1.1*(C120+1)*(1+C121)*C124 -> 493 | D114: m3
B115: Scour box excavation | C115: 0 | D115: m3 | E115: On top of base
B117: walkway fwk on top of internal walls | C117: =PI()*2*2.3*0.8 -> 12 | D117: m2
B118: Tower base wood float | C118: =PI()*7.5^2*1.1 -> 194
B120: Valve room - Length | C120: 10.42 | E120: Length
B121: Width | C121: 6.13 | E121: Width
B122: Wall height | C122: 2.2
B123: Brick wall height | C123: 3.3
B124: Total Height | C124: =C123+C122 -> 5.5
B125: Base thickness | C125: 0.25
B127: Guard house | C127: 3 | E127: Length
C128: 5.48 | E128: Width
B130: sewer line length | C130: =130*1.1 -> 143 | D130: measured on Google earth
B131: Paving area | C131: =1.1*671 -> 738.1 | D131: measrued from C3d
B133: Pipe Length | F133: 0m-1m | G133: 1m-2m | H133: 2m-3m
B134: 650mm supply | C134: =F134+G134+H134 -> 1000 | E134: 650mm supply | F134: 0 | G134: 880 | H134: 120
B135: 400mm at reservoir | C135: =F135+G135+H135 -> 30 | E135: 400mm at reservoir | G135: 30
B136: 550mm | C136: =F136+G136+H136 -> 19 | E136: 550mm | G136: 19
B137: total | C137: =C136*1.1+C135*1.1+C134*1.1 -> 1153.9 | E137: Sewer | H137: =C130 -> 143
E138: Electrical from Connection to Main DB | F138: 40 | I138: Estimated from site layout + Risk
E139: Telemetry sleeves | F139: =20 -> 20 | I139: Measrued from Site layout
E140: Total | F140: =SUM(F134:F139) -> 60 | G140: =SUM(G134:G139) -> 929 | H140: =SUM(H134:H139) -> 263
B141: overflow/scour box | C141: 4.1 | D141: length
C142: 0.3 | D142: base height
C143: 2.075 | D143: wall height
C144: 0.2 | D144: wall t
C145: 1.4 | D145: width

Sheet Pipe Fittings (hidden)
H1: nrv | I1: non return valve | Q1: ecc | R1: eccentric | V1: pf | W1: puddle flange
Q2: con | R2: concentric | V2: oef | W2: one end flanged
Q3: ff | R3: fully flanged | V3: bef | W3: both ends flanged
B5: BENDS | G5: VALVES | K5: CUT LENGTHS | P5: REDUCERS | U5: GENERAL
B6: Item No | C6: Quantity | D6: Description | E6: Length | G6: Item No | H6: Quantity | I6: Description | K6: Item No | L6: Quantity | M6: Description | N6: Length | P6: Item No | Q6: Quantity | R6: Description | S6: Length | U6: Item No | V6: Quantity | W6: Description | X6: Length
B7: 1.1 | C7: =1+1 -> 2 | D7: SS 650mm dia | E7: 90 deg | G7: 2.1 | H7: 1 | I7: 200mm Gate valve | K7: 4.1 | L7: 2 | M7: ss 650 oef | N7: 2000 | P7: 5.1 | Q7: 1 | R7: 1000 to 750 | S7: ecc | U7: 1.7 | V7: 1 | W7: 250 by 200 reducing tee | X7: 90 and 100
B8: 1.2 | C8: =1+1 -> 2 | D8: SS 650mm dia | E8: 45 deg | G8: 2.2 | H8: =3+6 -> 9 | I8: 400mm gate valve | K8: 4.2 | L8: 4 | M8: ss 650 bef | N8: 6000 | P8: 5.2 | Q8: 1 | R8: 750 to 500 | S8: ecc | U8: 3.1 | V8: 1 | W8: SS 650, pf | X8: 1255
B9: 1.3 | C9: 1 | D9: SS 550mm dia | E9: 43.5 deg | G9: 2.3 | H9: 1 | I9: 400mm combination control valve | K9: 4.3 | L9: 1 | M9: ss 650 oef | N9: 1260 | P9: 5.3 | Q9: 1 | R9: 500 to 300 | S9: ecc | U9: 3.2 | V9: 1 | W9: SS 550, pf, oef | X9: 1085
B10: 1.4 | C10: 1 | D10: SS 550mm dia | E10: 90 deg | G10: 2.4 | H10: 6 | I10: 250mm combi control valve | K10: 4.4 | L10: 1 | M10: ss650 oef | N10: 400 | P10: 5.4 | Q10: 1 | R10: 300 to 250 | S10: ecc | U10: 3.3 | V10: 1 | W10: SS 250, pf | X10: 995
B11: 1.5 | C11: =1+1 -> 2 | D11: SS 250mm dia | E11: 45 deg | G11: 2.5 | H11: 3 | I11: 250mm NRV | K11: 4.5 | L11: 1 | M11: ss 650 oef | N11: 2075 | P11: 5.5 | Q11: 3 | R11: 650 to 400 | S11: con ff | U11: 3.4 | V11: 1 | W11: SS 200 pf, oef | X11: 1000
B12: 1.6 | C12: 1 | D12: SS 250mm dia | E12: 90 deg | K12: 4.6 | L12: 1 | M12: ss 650 oef | N12: 2520 | P12: 5.6 | Q12: =3+4 -> 7 | R12: 550 to 400 | S12: con ff | U12: 3.5
B13: 1.7 | D13: See GENERAL | K13: 4.7 | L13: 1 | M13: ss550 oef | N13: 300 | P13: 5.7 | Q13: 1 | R13: 400 to 350 | S13: con ff | U13: 3.6
B14: 1.8 | C14: =1+1+1+1 -> 4 | D14: SS 200mm dia | E14: 45 deg | K14: 4.8 | L14: 3 | M14: ss550 bef | N14: 6000 | P14: 5.8 | Q14: 1 | R14: 400 to 250 | S14: con ff | U14: 3.7
B15: 1.9 | C15: 1 | D15: SS 200mm dia | E15: 90 deg | K15: 4.9 | L15: 1 | M15: ss550 oef | N15: 2660 | P15: 5.9 | Q15: 1 | R15: 350 to 250 | S15: con ff | U15: 3.8
B16: 1.10 | C16: 2 | D16: MS 650mm dia | E16: 47.83 deg | K16: 4.10 | L16: 1 | M16: ss550 oef | N16: 1350 | U16: 3.9 | V16: 3 | W16: MS 650 , pf, ff | X16: 1045
B17: 1.11 | C17: 1 | D17: MS 550mm dia | E17: 55 deg | K17: 4.11 | L17: 1 | M17: ss750 | N17: 300 | U17: 3.10 | V17: 2 | W17: MS 550, pf, ff | X17: 1655
B18: 1.12 | C18: 1 | D18: MS 250mm dia | E18: 90 deg | K18: 4.12 | L18: 1 | M18: ss350 oef | N18: 350 | U18: 3.11 | V18: 4 | W18: MS 400 ,ff, tee, 505 spool | X18: 610
K19: 4.13 | L19: 4 | M19: ss250 bef | N19: 6000 | U19: 3.12 | V19: 1 | W19: MS 650,ff, s-bend 45 deg | X19: 3350
K20: 4.14 | L20: 1 | M20: ss250 oef | N20: 2260 | U20: 3.13 | V20: 1 | W20: ms 550, s-bend 45 deg
K21: 4.15 | L21: 1 | M21: ss250 oef | N21: 350 | U21: 3.14 | V21: 1 | W21: ms 650 blind flange
K22: 4.16 | L22: 1 | M22: ss250oef | N22: 3900 | U22: 3.15 | V22: 1 | W22: ms 550 pf, ff | X22: 1045
K23: 4.17 | L23: 1 | M23: ss250oef | N23: 980 | U23: 3.16 | V23: 1 | W23: ms 550 by 300 tee
K24: 4.18 | L24: 3 | M24: ss200oef | N24: 300 | U24: 3.17 | V24: 2 | W24: ms 550 blind flange
K25: 4.19 | L25: 1 | M25: ss200 | N25: 415 | U25: 3.18 | V25: 1 | W25: ms 300 blind flange
K26: 4.20 | L26: 3 | M26: ss200 bef | N26: 6000 | U26: 3.19 | V26: 1 | W26: ms 650 long radius bend | X26: ff
K27: 4.21 | L27: 1 | M27: ss200 bef | N27: 1875 | U27: 3.20 | V27: 2 | W27: ms 500 equal t
K28: 4.22 | L28: 1 | M28: ss200oef | N28: 350 | U28: 3.21 | V28: 2 | W28: ms 400 equal t
K29: 4.23 | U29: 3.22 | V29: 1 | W29: 350 by 250 reducing t
K30: 4.24 | U30: 3.23 | V30: 3 | W30: 400 by 250 sweeping tee
K31: 4.25
K32: 4.26 | L32: 1 | M32: ms650 oef | N32: 19100
K33: 4.27 | L33: 1 | M33: ms650 bevelled | N33: 1744
K34: 4.28 | L34: 1 | M34: ms650 oef | N34: 510
K35: 4.29 | L35: 6 | M35: ms400 bef | N35: 500
K36: 4.30 | L36: 1 | M36: ms550ff | N36: 10910
K37: 4.31 | L37: 1 | M37: ms550 ff | N37: 2675
K38: 4.32 | L38: 1 | M38: ss250 oef | N38: 495
K39: 4.33 | L39: 1 | M39: ms 550 bef | N39: 586
K40: 4.34 | L40: 1 | M40: ms 550 oef | N40: 2187
K41: 4.35 | L41: 1 | M41: ms 550 oef | N41: 12631
K42: 4.36 | L42: 1 | M42: ms 400 bef | N42: 3955
K43: 4.37 | L43: 1 | M43: ms 400 bef | N43: 2293
K44: 4.38 | L44: 1 | M44: ms 350 bef | N44: 4895
K45: 4.39 | L45: 1 | M45: ms 250 bef | N45: 958
K46: 4.40 | L46: 1 | M46: ms 250 bef | N46: 1053
K47: 4.41 | L47: 1 | M47: ms 250 oef | N47: 2508
K48: 4.42 | L48: 1 | M48: ms 250 oef | N48: 1377
K49: 4.43 | L49: 3 | M49: ms 150bef | N49: 150
